Workbook

Sheet Version History (hidden)
A3: Version History
A5: Author | B5: Date | C5: Description | D5: Version | E5: Checked By | I5: Done by | J5: Date completed | K5: Checked by | L5: Date checked
A6: Patrick McGrath | B6: 2014-11-11 | C6: Initial version created | D6: v0.1
A7: Patrick McGrath | B7: 2014-11-11 | C7: Added version history & audit trail | D7: v0.2
A8: Patrick McGrath | B8: 2014-11-11 | C8: Updated fund names for RLP | D8: v0.3
A9: Graham Carson | B9: 2015-07-14 | C9: Updated to end of June / Fixed First State Emerging Markets / Tactical Change 18/06/2015.
A10: Euan Craig | B10: 2017-04-19 | C10: Added benchmark performance for funds with price delays | D10: v0.4
A11: Lewis Daley | B11: 2019-02-12 | C11: Updated fund name changes - evidence saved in GP Overcode:2019 Updates: Name Change Evidence | D11: v0.5 | E11: Graham Carson
A12: Joseph Smith | B12: 2019-07-16 | C12: Updated calculations for a Governed Range overcode calcualtor. Added GRIP calculations, added GRIP tab and split out input page. | D12: v0.6 | E12: Ryan Hamill
A13: Ryan Hamill | B13: 2020-05-13 | C13: Udated calculations to allow month-end auto-rebalancing to be switched off. | D13: v0.7
A14: Emer Drayne | B14: 2020-11-11 | C14: Updated fund name change: RLP Emerging Markets Specialist (Fidelity Emerging Markets). Removed closed fund: RLP UK Equity Specialist (Schroder UK Alpha Plus). | D14: v2.1
A15: Emer Drayne | B15: 2021-01-13 | C15: Added RLP Global Sustainable Equity. Updated fund name changes: RLP UK Equity Specialist (Invesco UK Growth) to RLP UK Equity Specialist (Fidelity UK Opportunities), RLP Japan Core Plus (Schroder Tokyo) to RLP Japan Core Plus (Baillie Gifford Japanese Income Growth), RLP Japan Specialist (Invesco Japan) to RLP Japan Specialist (Baillie Gifford Japanese). | D15: v2.2
A16: Rebecca Clark | B16: 2022-11-28 | C16: Added UK Corporate Bond, Global Corporate Bond, Short Duration UK Corporate Bond, UK Index Linked, Short Duration Global Index Linked, UK Government Bond, Global Government Bond and Short Duration UK Government Bond | D16: v2.3 | E16: Mayer Raichura | F16: Some #N/A's but because new funds do not have allocation until April. Formulae work through and no impact on perfromance.
A17: Jack Timson | B17: 2024-06-28 | C17: Updated SAAs | D17: v2.4 | E17: Mayer Raichura
A18: Jack TImson | B18: 2024-10-11 | C18: Revamped for GP changes, added GP Total Equity | D18: v3

Sheet Process (hidden)
A1: Purpose | B1: The GP overcode calculator is a tool that is refreshed monthly with the latest performance documents and tactical positions. The aim is to allow performance of GP's to be run substituting out the standard equity content (RLP Global Managed).
A3: Process
A4: 1 | B4: Ensure latest version of the spreadsheet is being used by checking the last updated version online/saved in the s drive
A5: 2 | B5: The workbook should be password protected and locked for editing. The password is GROvercode280222 to unlock both the sheet and workbook
A6: 3 | B6: There is multiple tabs within the spreadsheet, however, for the standard monthly updates the key ones are: Lipper SLP Funds, Lipper SLP Benchmarks, Tactical AA, Dropdown Choices
A7: 4 | B7: The Lipper files are saved in a template so these need to be refreshed to reflect the month end of the update being completed, along with the dates of the relevant tactical changes being included | C7: S:\Investment Marketing\BAU\GP Overcode\Lipper Tables
A8: 5 | B8: Once the Lipper templates have been refreshed, these should be copied and pasted into the Lipper SLP Funds and Lipper SLP Benchmarks tab.
A9: 6 | B9: Next is updating the Tactical AA tab, which requires adding a column with the latest tactical position (ensuring this stays part of the table). There should be a final column which has a date for the year 5000, this should always be the last column within the table. There is a row named Spare Asset 3 - this should be 0.00% for all cases. The tactical positions can be copied and pasted from the tracking error spreadsheet saved in the relevant months tactical folder. Ensure the order of the asset classes are the same.
A10: 7 | B10: The Performance Calculator page works by users selecting a drop down of which the data is sourced from the Dropdown Choices tab. This is the next tab to be updated.
A11: 8 | B11: The latest performance figures column shows the month ends that the performance is to run from. Therefore add the appropriate month end. Remember to check/include the new month end within the data validation range. The range that is being used is a named range so this is where the update should be made (through name manager).
A12: 9 | B12: Once all the updates have been made, cell F7 on the performance calculator tab should be updated accordingly with the month end that the spreadsheet was last updated. This subsequently feeds through to the caveats below each performance table so these do not need to be manually updated
A13: 10 | B13: To check that the updates have worked, test the performance figures by having global managed as 100% of the equity content and comparing against the months IB figures
A14: 11 | B14: The spreadsheet should then be checked by another member of the team, ensuring there has been no keying errors and that the macros for printing still function correctly

Sheet Audit Trail (hidden)
B2: Audit Trail
B4: Purpose
B5: The purpose of this spreadsheet is to allow consultants & advisers to calculate the performance of Governed Portfolios (1-9) where the standard equity component has been replaced with alternative equity funds.
B7: General Notes
B8: This spreadsheet does not adher to 'standard' spreadsheet standards as it is externally facing. As a result the 'Performance Calculator' sheet has been shaded according to the brand guidelines in force as of 11/11/2014.
B10: Sheets
C11: Version History
C12: Contains the version history & sign off history of the spreadsheet
C14: Audit Trail
C15: Contains information about each of the sheets and the calculation methodology
C17: Performance Calculator
C18: Provide consultant/adviser equity overcode options as well as the date performance should be calculated up to.
D19: Fund drop down choices are driven by dynamic data validation, pointing to various named ranges on the 'Dropdown Choices' sheet. These ranges are created by the macro within the 'mdl_FundDDCreator' module
D20: TER figures for each fund are pulled through from the 'Codes Dump' sheet
C22: Provide consultant/adviser with printable output similar to the monthly investment report
D23: Performance figures are pulled through from the 'Consolidated Performance Calc' sheet.
C25: Consolidated Performance Calc
C26: This sheet pulls back data for each portfolio & benchmark from the 'TA (Actual) Calc' sheet & the 'TA (GLO) Calc' sheet & the 'SA (Benchmark) Calc' sheet.
D27: This is done using a series of HLOOKUPs on the relevent data sheets
D28: Additionally this sheet also controls the validation of when the performance data should be shown using the following checks
E29: Total equity = 100% (TA Equity Calc)
E30: Fund Launch Date <= Performance From Date (Consolidated Performance Calc)
E31: Benchmark to be shown (TA Equity Calc + Codes Dump)
E32: 12 months performance available check (TA Equity Calc)
C34: Fund Dropdown Calc
C35: This sheet controls the dynamic ranges that are used to determine the options available in the fund name dropdowns on the 'Performance Calculator' sheet
C36: Additionally it is used to highlight when impossible fund manager/fund name combinations have been chosen
C38: TA Equity Calc
C39: This sheet calculates the consolidated performance of the adviser/consultants equity selection
D40: This is done by pulling through relevent data from the 'Lipper SLP Funds' sheet
D41: The sumproduct of returns & allocations are then calculated for each month to give the monthly return of the equity selection
C43: TA (Actual) Calc
C44: For each of the 9 governed portfolios each of the following are calculated
D45: Tactical asset allocation according to Tactical AA sheet
E46: This is done by reference to the 'Tactial AA' sheet & the dates of each tactical
E47: Space has been left in this section for spare assets to make additional assets easier to add in the future
D48: Tactical asset allocation allowing for 'false/positive' tactical changes, i.e. ones where a change has been added which is identical to the previous position.
E49: Where a false rebalance occurs this is undone by calculating the accumulated allocation to the rebalancing point
D50: The performance @ fund level, allowing for the tactical allocation each month
D51: The total monthly performance of the portfolio after allowing for any AMC rebate (currently fixed @ 0%)
D52: The notional value of an idex for the portfolio
C54: TA (GLO) Calc
C55: As per 'TA (Actual) Calc' where equity component is 100% Global Managed
C57: SA (Benchmark) Calc
C58: As per 'TA (Actual) Calc' but with strategic asset allocations & benchmark returns
C60: Lipper SLP Funds
C61: Contains an extract of Lipper data relating to the performance of the SLP funds
C63: Lipper SLP Benchmarks
C64: Contains an extract of Lipper data relating to the performance of the SLP fund benchmarks
C66: Codes Dump
C67: Contains an extract of key data columns from the 'Codes' spreadsheet. Note that only funds available for overcode are located here
C69: Fund Named Ranges
C70: This sheet is populated with the named ranges used in the dynamic data validation on the 'Performance Calculator' sheet. It is populated using the vba in the 'mdl_FundDDCreator' module.
C72: Strategic AA
C73: Contains the history of strategic asset allocations for each of the Governed Portfolios
C75: Tactical AA
C76: Contains the history of tactical asset allocations for each of the Governed Portfolios
C78: Stock Selection
C79: Contains a list of asset class benchmark & tactical lipper IDs
C81: Dropdown Choices
C82: Contains the dropdown choices available in other Dropdowns
C84: Launch Dates
C85: Contains the launch dates of the Governed Portfolios
C87: Wording Checks
C88: Contains the wording used in the output
B90: VBA
C91: mdl_PrintCode
C92: This module contains the code used for printing the output to the default printer, using default settings. It was written by Scott Manson
C94: mdl_FundDDCreator
C95: This module contains three procedures
D96: CreateFundNameDDRanges
D97: CleanName
D98: CreateFundManagerDDRanges
C100: Both the creation modules loop through the data on the 'Codes' dump sheet & create name ranges for each of the options
C101: The CleanName function removes non standard characters from a string & presents it in upper case.

Sheet Overcode Input
A1: FOR PROFESSIONAL ADVISER USE ONLY | N1: GRIPPerf_with_default | O1: =TEXT(TODAY(),"DDMMYY") -> 210725
A3: Governed Range Equity Overcode Performance Calculator
A5: Inputs
A7: Month end | B7: 2025-06-30 | E7: This spreadsheet last updated | G7: 2025-06-30
A9: Assumed Product Charge | B9: 0.01
A10: Fund Manager | B10: Fund name | E10: % of equity | F10: =IF(Input_AMCRebate=0.01,"Additional Fund Management Charge",IF(Input_AMCRebate=0,"Fund Management Charge","Product + Fund Management Charge")) -> Fund Management Charge | G10: TER
A11: RLAM | B11: RLP Global Managed | E11: 1 | F11: =IF('Overcode Input'!B11="","",INDEX('Codes Dump'!$E:$E,MATCH('Overcode Input'!B11,'Codes Dump'!$A:$A,0))-Input_AMCRebate) -> 0.01 | G11: =IF('Overcode Input'!B11="","",INDEX('Codes Dump'!$F:$F,MATCH('Overcode Input'!B11,'Codes Dump'!$A:$A,0))-Input_AMCRebate) -> 0.01
F12: =IF('Overcode Input'!B12="","",INDEX('Codes Dump'!$E:$E,MATCH('Overcode Input'!B12,'Codes Dump'!$A:$A,0))-Input_AMCRebate) ->  | G12: =IF('Overcode Input'!B12="","",INDEX('Codes Dump'!$F:$F,MATCH('Overcode Input'!B12,'Codes Dump'!$A:$A,0))-Input_AMCRebate) -> 
F13: =IF('Overcode Input'!B13="","",INDEX('Codes Dump'!$E:$E,MATCH('Overcode Input'!B13,'Codes Dump'!$A:$A,0))-Input_AMCRebate) ->  | G13: =IF('Overcode Input'!B13="","",INDEX('Codes Dump'!$F:$F,MATCH('Overcode Input'!B13,'Codes Dump'!$A:$A,0))-Input_AMCRebate) -> 
F14: =IF('Overcode Input'!B14="","",INDEX('Codes Dump'!$E:$E,MATCH('Overcode Input'!B14,'Codes Dump'!$A:$A,0))-Input_AMCRebate) ->  | G14: =IF('Overcode Input'!B14="","",INDEX('Codes Dump'!$F:$F,MATCH('Overcode Input'!B14,'Codes Dump'!$A:$A,0))-Input_AMCRebate) -> 
F15: =IF('Overcode Input'!B15="","",INDEX('Codes Dump'!$E:$E,MATCH('Overcode Input'!B15,'Codes Dump'!$A:$A,0))-Input_AMCRebate) ->  | G15: =IF('Overcode Input'!B15="","",INDEX('Codes Dump'!$F:$F,MATCH('Overcode Input'!B15,'Codes Dump'!$A:$A,0))-Input_AMCRebate) -> 
F16: =IF('Overcode Input'!B16="","",INDEX('Codes Dump'!$E:$E,MATCH('Overcode Input'!B16,'Codes Dump'!$A:$A,0))-Input_AMCRebate) ->  | G16: =IF('Overcode Input'!B16="","",INDEX('Codes Dump'!$F:$F,MATCH('Overcode Input'!B16,'Codes Dump'!$A:$A,0))-Input_AMCRebate) -> 
F17: =IF('Overcode Input'!B17="","",INDEX('Codes Dump'!$E:$E,MATCH('Overcode Input'!B17,'Codes Dump'!$A:$A,0))-Input_AMCRebate) ->  | G17: =IF('Overcode Input'!B17="","",INDEX('Codes Dump'!$F:$F,MATCH('Overcode Input'!B17,'Codes Dump'!$A:$A,0))-Input_AMCRebate) -> 
F18: =IF('Overcode Input'!B18="","",INDEX('Codes Dump'!$E:$E,MATCH('Overcode Input'!B18,'Codes Dump'!$A:$A,0))-Input_AMCRebate) ->  | G18: =IF('Overcode Input'!B18="","",INDEX('Codes Dump'!$F:$F,MATCH('Overcode Input'!B18,'Codes Dump'!$A:$A,0))-Input_AMCRebate) -> 
F19: =IF('Overcode Input'!B19="","",INDEX('Codes Dump'!$E:$E,MATCH('Overcode Input'!B19,'Codes Dump'!$A:$A,0))-Input_AMCRebate) ->  | G19: =IF('Overcode Input'!B19="","",INDEX('Codes Dump'!$F:$F,MATCH('Overcode Input'!B19,'Codes Dump'!$A:$A,0))-Input_AMCRebate) -> 
F20: =IF('Overcode Input'!B20="","",INDEX('Codes Dump'!$E:$E,MATCH('Overcode Input'!B20,'Codes Dump'!$A:$A,0))-Input_AMCRebate) ->  | G20: =IF('Overcode Input'!B20="","",INDEX('Codes Dump'!$F:$F,MATCH('Overcode Input'!B20,'Codes Dump'!$A:$A,0))-Input_AMCRebate) -> 
F21: =IF('Overcode Input'!B21="","",INDEX('Codes Dump'!$E:$E,MATCH('Overcode Input'!B21,'Codes Dump'!$A:$A,0))-Input_AMCRebate) ->  | G21: =IF('Overcode Input'!B21="","",INDEX('Codes Dump'!$F:$F,MATCH('Overcode Input'!B21,'Codes Dump'!$A:$A,0))-Input_AMCRebate) -> 
F22: =IF('Overcode Input'!B22="","",INDEX('Codes Dump'!$E:$E,MATCH('Overcode Input'!B22,'Codes Dump'!$A:$A,0))-Input_AMCRebate) ->  | G22: =IF('Overcode Input'!B22="","",INDEX('Codes Dump'!$F:$F,MATCH('Overcode Input'!B22,'Codes Dump'!$A:$A,0))-Input_AMCRebate) -> 
F23: =IF('Overcode Input'!B23="","",INDEX('Codes Dump'!$E:$E,MATCH('Overcode Input'!B23,'Codes Dump'!$A:$A,0))-Input_AMCRebate) ->  | G23: =IF('Overcode Input'!B23="","",INDEX('Codes Dump'!$F:$F,MATCH('Overcode Input'!B23,'Codes Dump'!$A:$A,0))-Input_AMCRebate) -> 
F24: =IF('Overcode Input'!B24="","",INDEX('Codes Dump'!$E:$E,MATCH('Overcode Input'!B24,'Codes Dump'!$A:$A,0))-Input_AMCRebate) ->  | G24: =IF('Overcode Input'!B24="","",INDEX('Codes Dump'!$F:$F,MATCH('Overcode Input'!B24,'Codes Dump'!$A:$A,0))-Input_AMCRebate) -> 
F25: =IF('Overcode Input'!B25="","",INDEX('Codes Dump'!$E:$E,MATCH('Overcode Input'!B25,'Codes Dump'!$A:$A,0))-Input_AMCRebate) ->  | G25: =IF('Overcode Input'!B25="","",INDEX('Codes Dump'!$F:$F,MATCH('Overcode Input'!B25,'Codes Dump'!$A:$A,0))-Input_AMCRebate) -> 
F26: =IF('Overcode Input'!B26="","",INDEX('Codes Dump'!$E:$E,MATCH('Overcode Input'!B26,'Codes Dump'!$A:$A,0))-Input_AMCRebate) ->  | G26: =IF('Overcode Input'!B26="","",INDEX('Codes Dump'!$F:$F,MATCH('Overcode Input'!B26,'Codes Dump'!$A:$A,0))-Input_AMCRebate) -> 
F27: =IF('Overcode Input'!B27="","",INDEX('Codes Dump'!$E:$E,MATCH('Overcode Input'!B27,'Codes Dump'!$A:$A,0))-Input_AMCRebate) ->  | G27: =IF('Overcode Input'!B27="","",INDEX('Codes Dump'!$F:$F,MATCH('Overcode Input'!B27,'Codes Dump'!$A:$A,0))-Input_AMCRebate) -> 
F28: =IF('Overcode Input'!B28="","",INDEX('Codes Dump'!$E:$E,MATCH('Overcode Input'!B28,'Codes Dump'!$A:$A,0))-Input_AMCRebate) ->  | G28: =IF('Overcode Input'!B28="","",INDEX('Codes Dump'!$F:$F,MATCH('Overcode Input'!B28,'Codes Dump'!$A:$A,0))-Input_AMCRebate) -> 
F29: =IF('Overcode Input'!B29="","",INDEX('Codes Dump'!$E:$E,MATCH('Overcode Input'!B29,'Codes Dump'!$A:$A,0))-Input_AMCRebate) ->  | G29: =IF('Overcode Input'!B29="","",INDEX('Codes Dump'!$F:$F,MATCH('Overcode Input'!B29,'Codes Dump'!$A:$A,0))-Input_AMCRebate) -> 
F30: =IF('Overcode Input'!B30="","",INDEX('Codes Dump'!$E:$E,MATCH('Overcode Input'!B30,'Codes Dump'!$A:$A,0))-Input_AMCRebate) ->  | G30: =IF('Overcode Input'!B30="","",INDEX('Codes Dump'!$F:$F,MATCH('Overcode Input'!B30,'Codes Dump'!$A:$A,0))-Input_AMCRebate) -> 
D31: Check that equity sums to 100%
E32: =SUM('Overcode Input'!E11:E30) -> 1 | F32: =SUMPRODUCT('Overcode Input'!E11:E30,'Overcode Input'!F11:F30) -> 0.01 | G32: =SUMPRODUCT('Overcode Input'!E11:E30,'Overcode Input'!G11:G30) -> 0.01
A35: =IF(AND('TA Equity Calc'!E29="Yes",'TA Equity Calc'!E31="Yes"),"GP performance will be calculated from:","GP performance figures not calculated because:") -> GP performance will be calculated from:
A36: =IF('TA Equity Calc'!E29="No","Equity selection does not add up to 100%",IF('TA Equity Calc'!E31="No","One or more of the funds selected have less than 12 months performance data",'Consolidated Performance Calc'!C9)) -> 2009-01-12
A38: =IF(AND('TA Equity Calc'!E29="Yes",'TA Equity Calc'!E31="Yes"),"GRIP performance will be calculated from:","GRIP performance figures not calculated because:") -> GRIP performance will be calculated from:
A39: =IF('TA Equity Calc'!E29="No","Equity selection does not add up to 100%",IF('TA Equity Calc'!E31="No","One or more of the funds selected have less than 12 months performance data",'Consolidated Performance Calc'!C10)) -> 2012-08-28

Sheet Paras (hidden)
B1: Governed Portfolios
B2: Performance Wording 1 | C2: This table gives simulated past performance of the Governed Portfolios assuming that the equity portion was invested in the replacement funds shown. It should be noted that some funds come with an additional management charge to the standard 1% applicable to RLAM funds. The overall charge depends on the current asset allocation.
B3: Performance Wording 2 | C3: ="The management charges shown in the table correspond to the asset allocation at "&TEXT(input_MonthEnd,"dd.mm.yy")&" only." -> The management charges shown in the table correspond to the asset allocation at 30.06.25 only.
B4: Performance Wording 3 | C4: The equity portion of the Governed Portfolios is, by default, invested in the RLP Global Managed Pension fund. The performance of the Governed Portfolios has been calculated assuming this default equity selection. The composite benchmark performance uses the indices which correspond to the underlying funds.
B6: GRIPs
B7: Performance Wording 1 | C7: This table gives simulated past performance of the GRIPs assuming that the equity portion was invested in the replacement funds shown. It should be noted that some funds come with an additional management charge to the standard 1% applicable to RLAM funds. The overall charge depends on the current asset allocation.
B8: Performance Wording 2 | C8: ="The management charges shown in the table correspond to the asset allocation at "&TEXT(input_MonthEnd,"dd.mm.yy")&" only." -> The management charges shown in the table correspond to the asset allocation at 30.06.25 only.
B9: Performance Wording 3 | C9: The equity portion of the GRIPs is, by default, invested in the RLP Global Managed Pension fund. The performance of the GRIPs has been calculated assuming this default equity selection. The composite benchmark performance uses the indices which correspond to the underlying funds.
B11: Governed Portfolios Annuity
B12: Performance Wording 1 | C12: This table gives simulated past performance of the Governed Portfolios (Annuity) assuming that the equity portion was invested in the replacement funds shown. It should be noted that some funds come with an additional management charge to the standard 1% applicable to RLAM funds. The overall charge depends on the current asset allocation.
B13: Performance Wording 2 | C13: ="The management charges shown in the table correspond to the asset allocation at "&TEXT(input_MonthEnd,"dd.mm.yy")&" only." -> The management charges shown in the table correspond to the asset allocation at 30.06.25 only.
B14: Performance Wording 3 | C14: The equity portion of the Governed Portfolios (Annuity) is, by default, invested in the RLP Global Managed Pension fund. The performance of the Governed Portfolios has been calculated assuming this default equity selection.
B16: Governed Portfolios Drawdown
B17: Performance Wording 1 | C17: This table gives simulated past performance of the Governed Portfolios (Drawdown) assuming that the equity portion was invested in the replacement funds shown. It should be noted that some funds come with an additional management charge to the standard 1% applicable to RLAM funds. The overall charge depends on the current asset allocation.
B18: Performance Wording 2 | C18: ="The management charges shown in the table correspond to the asset allocation at "&TEXT(input_MonthEnd,"dd.mm.yy")&" only." -> The management charges shown in the table correspond to the asset allocation at 30.06.25 only.
B19: Performance Wording 3 | C19: The equity portion of the Governed Portfolios (Drawdown) is, by default, invested in the Royal London Global Managed Pension fund. The performance of the Governed Portfolios has been calculated assuming this default equity selection.
A21: Pension intro para | B21: =_xlfn.CONCAT("The figures in this document ",IF(Input_AMCRebate=0,C21,IF(Input_AMCRebate=1%,C22,C23))) -> The figures in this document have been calculated net of the Fund Management Charge. | C21: have been calculated net of the Fund Management Charge.
C22: do not include our 1% product charge, but include any fund management charge which would be applied in addition to the product charge.
C23: ="have been calculated assuming a "&TEXT(1%-Input_AMCRebate,"0.00%")&" product charge." -> have been calculated assuming a 1.00% product charge.
A25: Benchmark | B25: The performance of each portfolio is shown against its benchmark: a gauge against which the performance of the fund can be measured. Where a fund invests in a number of different geographical areas or asset types, a composite benchmark may be used. This is when a mixture of indices have been used as a performance gauge. The mix between these indices will usually reflect the expected asset allocation of the portfolio.
A26: simulated benchmark | B26: The composite benchmark performance uses the indices which correspond to the default equity fund, not the replacement fund or funds.
A27: default benchmark | B27: The composite benchmark performance uses the indices which correspond to the underlying funds.
A29: Past Perf | B29: Past performance is not a guide to the future. Prices can fall as well as rise meaning you may not get back the value of your original investment. Investment returns may fluctuate and are not guaranteed.
A31: source wording | B31: =C31&C32&C33 -> Source: Lipper, bid to bid, as at 30.06.25, Royal London, as at 30.06.25. All performance figures, including the figures shown for the growth in the benchmarks, have been calculated net of the Fund Management Charge. The Compound Annual Growth Rate (C.A.G.R.) is a measure of the investment returns, on a given fund, over the specified period. It allows for the impact of compounding of investment returns, which is particularly important where returns vary from one year to the next. Past performance is not a guide to the future. Prices can fall as well as rise meaning you may not get back the value of your original investment. Investment returns may fluctuate and are not guaranteed. | C31: ="Source: Lipper, bid to bid, as at "&'GP Performance'!F42&", Royal London, as at "&'GP Performance'!F42&". " -> Source: Lipper, bid to bid, as at 30.06.25, Royal London, as at 30.06.25.
C32: ="All performance figures, including the figures shown for the growth in the benchmarks, "&IF(Input_AMCRebate=0,C21,IF(Input_AMCRebate=1%,C22,C23))&"" -> All performance figures, including the figures shown for the growth in the benchmarks, have been calculated net of the Fund Management Charge.
C33: The Compound Annual Growth Rate (C.A.G.R.) is a measure of the investment returns, on a given fund, over the specified period. It allows for the impact of compounding of investment returns, which is particularly important where returns vary from one year to the next. Past performance is not a guide to the future. Prices can fall as well as rise meaning you may not get back the value of your original investment. Investment returns may fluctuate and are not guaranteed.
A35: GP source | B35: Please note that the Governed Portfolios and their benchmarks are rebalanced on a monthly basis. This is the process of making sure the asset mix of the investments is maintained following movements due to fund price changes.
A36: GRIP source | B36: Please note that the GRIPs and their benchmarks are rebalanced on a monthly basis. This is the process of making sure the asset mix of the investments is maintained following movements due to fund price changes.
A37: GP (Annuity) source | B37: Please note that the GPs (Annuity) and their benchmarks are rebalanced on a monthly basis. This is the process of making sure the asset mix of the investments is maintained following movements due to fund price changes.
A38: GP (Drawdown)source | B38: Please note that the GPs (Drawdown) and their benchmarks are rebalanced on a monthly basis. This is the process of making sure the asset mix of the investments is maintained following movements due to fund price changes.
A40: FTSE caveat | B40: Note: The benchmarks used in this document include data from FTSE International Limited (“FTSE”) © FTSE 2025. “FTSE®” is a trade mark of the London Stock Exchange Group companies and is used by FTSE International Limited under licence. All rights in the FTSE indices and/or FTSE ratings vest in FTSE and/or its licensors. Neither FTSE nor its licensors accept any liability for any errors or omissions in the FTSE indices and/or FTSE ratings or underlying data. No further distribution of FTSE Data is permitted without FTSE’s express written consent.
A42: TER variable para | B42: =_xlfn.CONCAT(C42,C43,C46) -> Total Expense Ratio (TER), covering calendar year 2023. The TER is a measure of the overall cost of a fund to the investor. It includes any audit, custodian, registration or compliance fees paid out of the fund’s assets plus the Fund Management Charge. | C42: ="Total Expense Ratio (TER), covering calendar year "&TER_YEAR&". The TER is a measure of the overall cost of a fund to the investor. " -> Total Expense Ratio (TER), covering calendar year 2023. The TER is a measure of the overall cost of a fund to the investor.
C43: ="It includes any audit, custodian, registration or compliance fees paid out of the fund’s assets plus "&IF(Input_AMCRebate=0,D43,IF(Input_AMCRebate=1%,D44,D45))&". " -> It includes any audit, custodian, registration or compliance fees paid out of the fund’s assets plus the Fund Management Charge. | D43: the Fund Management Charge
D44: any fund management charge which would be applied in addition to the product charge, but does not include our 1% product charge
D45: ="the Fund Management Charge experienced by a customer incurring a "&TEXT(1%-Input_AMCRebate,"0.00%")&" product charge" -> the Fund Management Charge experienced by a customer incurring a 1.00% product charge
A47: Legals | B47: The Royal London Mutual Insurance Society Limited is authorised by the Prudential Regulation Authority and regulated by the Financial Conduct Authority and the Prudential Regulation Authority. The firm is on the Financial Services Register, registration number 117672. It provides life assurance and pensions. Registered in England and Wales number 99064. Registered office: 80 Fenchurch Street, London, EC3M 4BY. Royal London Marketing Limited is authorised and regulated by the Financial Conduct Authority and introduces Royal London’s customers to other insurance companies. The firm is on the Financial Services Register, registration number 302391. Registered in England and Wales number 4414137. Registered office: 80 Fenchurch Street, London, EC3M 4BY.

Sheet GP Performance
A1: Outputs - With Equity Overcode
A5: ="PERFORMANCE STATISTICS TO END-"&UPPER(TEXT(input_MonthEnd,"Mmmm"))&" "&YEAR(input_MonthEnd) -> PERFORMANCE STATISTICS TO END-JUNE 2025
A6: GOVERNED PORTFOLIOS
A8: Replacement equity funds
A10: Fund name | E10: =IF(Input_AMCRebate=0.01,"Additional Fund",IF(Input_AMCRebate=0,"Fund","Product + Fund")) -> Fund | F10: Total Expense Ratio | G10: % of equity allocation
E11: Management
E12: Charge
A13: =IF('Overcode Input'!B11="","",'Overcode Input'!B11) -> RLP Global Managed | E13: =IF('Overcode Input'!F11="","",'Overcode Input'!F11) -> 0.01 | F13: =IF('Overcode Input'!G11="","",'Overcode Input'!G11) -> 0.01 | G13: =IF('Overcode Input'!E11="","",'Overcode Input'!E11) -> 1 | I13: =IF('TA Equity Calc'!E30="Yes","","No benchmark comparison shown due to pricing delay of one or more selected funds.") -> 
A14: =IF('Overcode Input'!B12="","",'Overcode Input'!B12) ->  | E14: =IF('Overcode Input'!F12="","",'Overcode Input'!F12) ->  | F14: =IF('Overcode Input'!G12="","",'Overcode Input'!G12) ->  | G14: =IF('Overcode Input'!E12="","",'Overcode Input'!E12) -> 
A15: =IF('Overcode Input'!B13="","",'Overcode Input'!B13) ->  | E15: =IF('Overcode Input'!F13="","",'Overcode Input'!F13) ->  | F15: =IF('Overcode Input'!G13="","",'Overcode Input'!G13) ->  | G15: =IF('Overcode Input'!E13="","",'Overcode Input'!E13) -> 
A16: =IF('Overcode Input'!B14="","",'Overcode Input'!B14) ->  | E16: =IF('Overcode Input'!F14="","",'Overcode Input'!F14) ->  | F16: =IF('Overcode Input'!G14="","",'Overcode Input'!G14) ->  | G16: =IF('Overcode Input'!E14="","",'Overcode Input'!E14) -> 
A17: =IF('Overcode Input'!B15="","",'Overcode Input'!B15) ->  | E17: =IF('Overcode Input'!F15="","",'Overcode Input'!F15) ->  | F17: =IF('Overcode Input'!G15="","",'Overcode Input'!G15) ->  | G17: =IF('Overcode Input'!E15="","",'Overcode Input'!E15) -> 
A18: =IF('Overcode Input'!B16="","",'Overcode Input'!B16) ->  | E18: =IF('Overcode Input'!F16="","",'Overcode Input'!F16) ->  | F18: =IF('Overcode Input'!G16="","",'Overcode Input'!G16) ->  | G18: =IF('Overcode Input'!E16="","",'Overcode Input'!E16) -> 
A19: =IF('Overcode Input'!B17="","",'Overcode Input'!B17) ->  | E19: =IF('Overcode Input'!F17="","",'Overcode Input'!F17) ->  | F19: =IF('Overcode Input'!G17="","",'Overcode Input'!G17) ->  | G19: =IF('Overcode Input'!E17="","",'Overcode Input'!E17) -> 
A20: =IF('Overcode Input'!B18="","",'Overcode Input'!B18) ->  | E20: =IF('Overcode Input'!F18="","",'Overcode Input'!F18) ->  | F20: =IF('Overcode Input'!G18="","",'Overcode Input'!G18) ->  | G20: =IF('Overcode Input'!E18="","",'Overcode Input'!E18) -> 
A21: =IF('Overcode Input'!B19="","",'Overcode Input'!B19) ->  | E21: =IF('Overcode Input'!F19="","",'Overcode Input'!F19) ->  | F21: =IF('Overcode Input'!G19="","",'Overcode Input'!G19) ->  | G21: =IF('Overcode Input'!E19="","",'Overcode Input'!E19) -> 
A22: =IF('Overcode Input'!B20="","",'Overcode Input'!B20) ->  | E22: =IF('Overcode Input'!F20="","",'Overcode Input'!F20) ->  | F22: =IF('Overcode Input'!G20="","",'Overcode Input'!G20) ->  | G22: =IF('Overcode Input'!E20="","",'Overcode Input'!E20) -> 
A23: =IF('Overcode Input'!B21="","",'Overcode Input'!B21) ->  | E23: =IF('Overcode Input'!F21="","",'Overcode Input'!F21) ->  | F23: =IF('Overcode Input'!G21="","",'Overcode Input'!G21) ->  | G23: =IF('Overcode Input'!E21="","",'Overcode Input'!E21) -> 
A24: =IF('Overcode Input'!B22="","",'Overcode Input'!B22) ->  | E24: =IF('Overcode Input'!F22="","",'Overcode Input'!F22) ->  | F24: =IF('Overcode Input'!G22="","",'Overcode Input'!G22) ->  | G24: =IF('Overcode Input'!E22="","",'Overcode Input'!E22) -> 
A25: =IF('Overcode Input'!B23="","",'Overcode Input'!B23) ->  | E25: =IF('Overcode Input'!F23="","",'Overcode Input'!F23) ->  | F25: =IF('Overcode Input'!G23="","",'Overcode Input'!G23) ->  | G25: =IF('Overcode Input'!E23="","",'Overcode Input'!E23) -> 
A26: =IF('Overcode Input'!B24="","",'Overcode Input'!B24) ->  | E26: =IF('Overcode Input'!F24="","",'Overcode Input'!F24) ->  | F26: =IF('Overcode Input'!G24="","",'Overcode Input'!G24) ->  | G26: =IF('Overcode Input'!E24="","",'Overcode Input'!E24) -> 
A27: =IF('Overcode Input'!B25="","",'Overcode Input'!B25) ->  | E27: =IF('Overcode Input'!F25="","",'Overcode Input'!F25) ->  | F27: =IF('Overcode Input'!G25="","",'Overcode Input'!G25) ->  | G27: =IF('Overcode Input'!E25="","",'Overcode Input'!E25) -> 
A28: =IF('Overcode Input'!B26="","",'Overcode Input'!B26) ->  | E28: =IF('Overcode Input'!F26="","",'Overcode Input'!F26) ->  | F28: =IF('Overcode Input'!G26="","",'Overcode Input'!G26) ->  | G28: =IF('Overcode Input'!E26="","",'Overcode Input'!E26) -> 
A29: =IF('Overcode Input'!B27="","",'Overcode Input'!B27) ->  | E29: =IF('Overcode Input'!F27="","",'Overcode Input'!F27) ->  | F29: =IF('Overcode Input'!G27="","",'Overcode Input'!G27) ->  | G29: =IF('Overcode Input'!E27="","",'Overcode Input'!E27) -> 
A30: =IF('Overcode Input'!B28="","",'Overcode Input'!B28) ->  | E30: =IF('Overcode Input'!F28="","",'Overcode Input'!F28) ->  | F30: =IF('Overcode Input'!G28="","",'Overcode Input'!G28) ->  | G30: =IF('Overcode Input'!E28="","",'Overcode Input'!E28) -> 
A31: =IF('Overcode Input'!B29="","",'Overcode Input'!B29) ->  | E31: =IF('Overcode Input'!F29="","",'Overcode Input'!F29) ->  | F31: =IF('Overcode Input'!G29="","",'Overcode Input'!G29) ->  | G31: =IF('Overcode Input'!E29="","",'Overcode Input'!E29) -> 
A32: =IF('Overcode Input'!B30="","",'Overcode Input'!B30) ->  | E32: =IF('Overcode Input'!F30="","",'Overcode Input'!F30) ->  | F32: =IF('Overcode Input'!G30="","",'Overcode Input'!G30) ->  | G32: =IF('Overcode Input'!E30="","",'Overcode Input'!E30) -> 
A34: Governed Portfolio performance - with replacement equity funds
A35: =Paras!B21 -> The figures in this document have been calculated net of the Fund Management Charge.
A36: =Paras!C2&Paras!C3 -> This table gives simulated past performance of the Governed Portfolios assuming that the equity portion was invested in the replacement funds shown. It should be noted that some funds come with an additional management charge to the standard 1% applicable to RLAM funds. The overall charge depends on the current asset allocation. The management charges shown in the table correspond to the asset allocation at 30.06.25 only.
A37: =Paras!B25&Paras!B26 -> The performance of each portfolio is shown against its benchmark: a gauge against which the performance of the fund can be measured. Where a fund invests in a number of different geographical areas or asset types, a composite benchmark may be used. This is when a mixture of indices have been used as a performance gauge. The mix between these indices will usually reflect the expected asset allocation of the portfolio. The composite benchmark performance uses the indices which correspond to the default equity fund, not the replacement fund or funds.
A38: =Paras!B29 -> Past performance is not a guide to the future. Prices can fall as well as rise meaning you may not get back the value of your original investment. Investment returns may fluctuate and are not guaranteed.
A40: Portfolio Name | D40: ="Average "&E10&" Management Charge" -> Average Fund Management Charge | E40: Average Total Expense Ratio | F40: Percentage Change | K40: Compound Annual Growth Rate (%) | N40: Percentage Change
F41: =TEXT('Consolidated Performance Calc'!C22,"dd.mm.yy") -> 30.06.24 | G41: =TEXT('Consolidated Performance Calc'!C23,"dd.mm.yy") -> 30.06.23 | H41: =TEXT('Consolidated Performance Calc'!C24,"dd.mm.yy") -> 30.06.22 | I41: =TEXT('Consolidated Performance Calc'!C25,"dd.mm.yy") -> 30.06.21 | J41: =TEXT('Consolidated Performance Calc'!C26,"dd.mm.yy") -> 30.06.20 | N41: 1 Month | O41: 3 Months | P41: 6 Months | Q41: 9 Months
F42: =TEXT('Consolidated Performance Calc'!D22,"dd.mm.yy") -> 30.06.25 | G42: =TEXT('Consolidated Performance Calc'!D23,"dd.mm.yy") -> 30.06.24 | H42: =TEXT('Consolidated Performance Calc'!D24,"dd.mm.yy") -> 30.06.23 | I42: =TEXT('Consolidated Performance Calc'!D25,"dd.mm.yy") -> 30.06.22 | J42: =TEXT('Consolidated Performance Calc'!D26,"dd.mm.yy") -> 30.06.21 | K42: 3 Years | L42: 5 Years | N42: =TEXT('Consolidated Performance Calc'!C21,"dd.mm.yy") -> 31.05.25 | O42: =TEXT('Consolidated Performance Calc'!C20,"dd.mm.yy") -> 31.03.25 | P42: =TEXT('Consolidated Performance Calc'!C19,"dd.mm.yy") -> 31.12.24 | Q42: =TEXT('Consolidated Performance Calc'!C18,"dd.mm.yy") -> 30.09.24
F43: %Chg | G43: %Chg | H43: %Chg | I43: %Chg | J43: %Chg | N43: =TEXT('Consolidated Performance Calc'!D21,"dd.mm.yy") -> 30.06.25 | O43: =TEXT('Consolidated Performance Calc'!D20,"dd.mm.yy") -> 30.06.25 | P43: =TEXT('Consolidated Performance Calc'!D19,"dd.mm.yy") -> 30.06.25 | Q43: ='Consolidated Performance Calc'!D18 -> 2025-06-30
A44: Governed Portfolio Defensive with replacement equity fund(s) | D44: ='Tactical AA'!FI34 -> 0.01 | E44: ='Tactical AA'!FJ34 -> 0.01 | F44: ='Consolidated Performance Calc'!M22 -> 0.03759958732 | G44: ='Consolidated Performance Calc'!M23 -> 0.07732607862 | H44: ='Consolidated Performance Calc'!M24 -> -0.0189767571 | I44: ='Consolidated Performance Calc'!M25 -> -0.01806082814 | J44: ='Consolidated Performance Calc'!M26 -> 0.06978754546 | K44: ='Consolidated Performance Calc'!Q16 -> 0.03119287636 | L44: ='Consolidated Performance Calc'!Q15 -> 0.02868154232 | N44: ='Consolidated Performance Calc'!M21 -> 0.01430902551 | O44: ='Consolidated Performance Calc'!M20 -> 0.0142161624 | P44: ='Consolidated Performance Calc'!M19 -> 0.01836297668 | Q44: ='Consolidated Performance Calc'!M18 -> 0.02302917276
A45: =IF('TA Equity Calc'!$E$30="Yes","Composite Benchmark","-") -> Composite Benchmark | F45: ='Consolidated Performance Calc'!O22 -> 0.04205453413 | G45: ='Consolidated Performance Calc'!O23 -> 0.06565241206 | H45: ='Consolidated Performance Calc'!O24 -> -0.02334888333 | I45: ='Consolidated Performance Calc'!O25 -> -0.02469342413 | J45: ='Consolidated Performance Calc'!O26 -> 0.05310890272 | K45: ='Consolidated Performance Calc'!S16 -> 0.0273957642 | L45: ='Consolidated Performance Calc'!S15 -> 0.02180223662 | N45: ='Consolidated Performance Calc'!O21 -> 0.01177075745 | O45: ='Consolidated Performance Calc'!O20 -> 0.01558081043 | P45: ='Consolidated Performance Calc'!O19 -> 0.02263216258 | Q45: ='Consolidated Performance Calc'!O18 -> 0.02561916492
A46: =IF('TA Equity Calc'!$E$30="Yes","Difference","-") -> Difference | F46: =IF(F45="N/A","N/A",IF(F44="N/A","N/A",F44-F45)) -> -0.00445494681 | G46: 0.01167366656 | H46: 0.004372126232 | I46: 0.00663259599 | J46: 0.01667864274 | K46: 0.003797112156 | L46: 0.006879305706 | N46: =IF(N45="N/A","N/A",IF(N44="N/A","N/A",N44-N45)) -> 0.002538268058 | O46: =IF(O45="N/A","N/A",IF(O44="N/A","N/A",O44-O45)) -> -0.001364648033 | P46: =IF(P45="N/A","N/A",IF(P44="N/A","N/A",P44-P45)) -> -0.004269185904 | Q46: =IF(Q45="N/A","N/A",IF(Q44="N/A","N/A",Q44-Q45)) -> -0.002589992161
A47: Governed Portfolio Conservative with replacement equity fund(s) | D47: ='Tactical AA'!FI63 -> 0.01 | E47: ='Tactical AA'!FJ63 -> 0.01 | F47: ='Consolidated Performance Calc'!M37 -> 0.03868120091 | G47: ='Consolidated Performance Calc'!M38 -> 0.09787497918 | H47: ='Consolidated Performance Calc'!M39 -> -0.005561750233 | I47: ='Consolidated Performance Calc'!M40 -> -0.0003942628985 | J47: ='Consolidated Performance Calc'!M41 -> 0.1029709231 | K47: ='Consolidated Performance Calc'!Q31 -> 0.04276805145 | L47: ='Consolidated Performance Calc'!Q30 -> 0.04566008798 | N47: ='Consolidated Performance Calc'!M36 -> 0.01594098862 | O47: ='Consolidated Performance Calc'!M35 -> 0.02140491302 | P47: ='Consolidated Performance Calc'!M34 -> 0.01438193123 | Q47: ='Consolidated Performance Calc'!M33 -> 0.02884042875
A48: =IF('TA Equity Calc'!$E$30="Yes","Composite Benchmark","-") -> Composite Benchmark | F48: ='Consolidated Performance Calc'!O37 -> 0.04923578501 | G48: ='Consolidated Performance Calc'!O38 -> 0.08651335173 | H48: ='Consolidated Performance Calc'!O39 -> -0.01036276186 | I48: ='Consolidated Performance Calc'!O40 -> -0.006299608638 | J48: ='Consolidated Performance Calc'!O41 -> 0.0849122454 | K48: ='Consolidated Performance Calc'!S31 -> 0.04098738068 | L48: ='Consolidated Performance Calc'!S30 -> 0.03991427232 | N48: ='Consolidated Performance Calc'!O51 -> 0.01605692223 | O48: ='Consolidated Performance Calc'!O50 -> 0.02651894865 | P48: ='Consolidated Performance Calc'!O49 -> 0.02237766628 | Q48: ='Consolidated Performance Calc'!O48 -> 0.04085691044
A49: =IF('TA Equity Calc'!$E$30="Yes","Difference","-") -> Difference | F49: =IF(F48="N/A","N/A",IF(F47="N/A","N/A",F47-F48)) -> -0.0105545841 | G49: 0.01136162746 | H49: 0.004801011624 | I49: 0.00590534574 | J49: 0.01805867766 | K49: 0.001780670775 | L49: 0.005745815659 | N49: =IF(N48="N/A","N/A",IF(N47="N/A","N/A",N47-N48)) -> -0.0001159336088 | O49: =IF(O48="N/A","N/A",IF(O47="N/A","N/A",O47-O48)) -> -0.00511403563 | P49: =IF(P48="N/A","N/A",IF(P47="N/A","N/A",P47-P48)) -> -0.007995735052 | Q49: =IF(Q48="N/A","N/A",IF(Q47="N/A","N/A",Q47-Q48)) -> -0.01201648169
A50: Governed Portfolio Moderate with replacement equity fund(s) | D50: ='Tactical AA'!FI92 -> 0.01 | E50: ='Tactical AA'!FJ92 -> 0.01 | F50: ='Consolidated Performance Calc'!M52 -> 0.03914310173 | G50: ='Consolidated Performance Calc'!M53 -> 0.1074164277 | H50: ='Consolidated Performance Calc'!M54 -> -0.005294914684 | I50: ='Consolidated Performance Calc'!M55 -> -0.01822742907 | J50: ='Consolidated Performance Calc'!M56 -> 0.1212880815 | K50: ='Consolidated Performance Calc'!Q46 -> 0.04602574279 | L50: ='Consolidated Performance Calc'!Q45 -> 0.04729915752 | N50: ='Consolidated Performance Calc'!M51 -> 0.01718733617 | O50: ='Consolidated Performance Calc'!M50 -> 0.02555412269 | P50: ='Consolidated Performance Calc'!M49 -> 0.01201750853 | Q50: ='Consolidated Performance Calc'!M48 -> 0.03155641632
A51: =IF('TA Equity Calc'!$E$30="Yes","Composite Benchmark","-") -> Composite Benchmark | F51: ='Consolidated Performance Calc'!O52 -> 0.05355540023 | G51: ='Consolidated Performance Calc'!O53 -> 0.09647650607 | H51: ='Consolidated Performance Calc'!O54 -> -0.01057816038 | I51: ='Consolidated Performance Calc'!O55 -> -0.0247197936 | J51: ='Consolidated Performance Calc'!O56 -> 0.1030245064 | K51: ='Consolidated Performance Calc'!S46 -> 0.04551053981 | L51: ='Consolidated Performance Calc'!S45 -> 0.04217517497 | N51: ='Consolidated Performance Calc'!O51 -> 0.01605692223 | O51: ='Consolidated Performance Calc'!O50 -> 0.02651894865 | P51: ='Consolidated Performance Calc'!O49 -> 0.02237766628 | Q51: ='Consolidated Performance Calc'!O48 -> 0.04085691044
A52: =IF('TA Equity Calc'!$E$30="Yes","Difference","-") -> Difference | F52: =IF(F51="N/A","N/A",IF(F50="N/A","N/A",F50-F51)) -> -0.0144122985 | G52: 0.01093992163 | H52: 0.005283245696 | I52: 0.00649236453 | J52: 0.01826357515 | K52: 0.0005152029832 | L52: 0.005123982546 | N52: =IF(N51="N/A","N/A",IF(N50="N/A","N/A",N50-N51)) -> 0.001130413941 | O52: =IF(O51="N/A","N/A",IF(O50="N/A","N/A",O50-O51)) -> -0.0009648259533 | P52: =IF(P51="N/A","N/A",IF(P50="N/A","N/A",P50-P51)) -> -0.01036015774 | Q52: =IF(Q51="N/A","N/A",IF(Q50="N/A","N/A",Q50-Q51)) -> -0.009300494114
A53: Governed Portfolio Growth with replacement equity fund(s) | D53: ='Tactical AA'!FI121 -> 0.01 | E53: ='Tactical AA'!FJ121 -> 0.01 | F53: ='Consolidated Performance Calc'!M82 -> 0.0396980858 | G53: ='Consolidated Performance Calc'!M83 -> 0.1243032905 | H53: ='Consolidated Performance Calc'!M84 -> 0.01167822528 | I53: ='Consolidated Performance Calc'!M85 -> -0.004223427045 | J53: ='Consolidated Performance Calc'!M86 -> 0.1553837314 | K53: ='Consolidated Performance Calc'!Q76 -> 0.05743957111 | L53: ='Consolidated Performance Calc'!Q75 -> 0.06348069309 | N53: ='Consolidated Performance Calc'!M66 -> 0.01718733617 | O53: ='Consolidated Performance Calc'!M65 -> 0.02555412269 | P53: ='Consolidated Performance Calc'!M64 -> 0.01201750853 | Q53: ='Consolidated Performance Calc'!M63 -> 0.03155641632
A54: =IF('TA Equity Calc'!$E$30="Yes","Composite Benchmark","-") -> Composite Benchmark | F54: ='Consolidated Performance Calc'!O82 -> 0.05785909956 | G54: ='Consolidated Performance Calc'!O83 -> 0.1130915891 | H54: ='Consolidated Performance Calc'!O84 -> 0.008736446806 | I54: ='Consolidated Performance Calc'!O85 -> -0.01010841351 | J54: ='Consolidated Performance Calc'!O86 -> 0.1349545626 | K54: ='Consolidated Performance Calc'!S76 -> 0.05898404412 | L54: ='Consolidated Performance Calc'!S75 -> 0.05936784178 | N54: ='Consolidated Performance Calc'!O66 -> 0.01605692223 | O54: ='Consolidated Performance Calc'!O65 -> 0.02651894865 | P54: ='Consolidated Performance Calc'!O64 -> 0.02237766628 | Q54: ='Consolidated Performance Calc'!O63 -> 0.04085691044
A55: =IF('TA Equity Calc'!$E$30="Yes","Difference","-") -> Difference | F55: =IF(F54="N/A","N/A",IF(F53="N/A","N/A",F53-F54)) -> -0.01816101376 | G55: 0.0112117014 | H55: 0.002941778474 | I55: 0.005884986468 | J55: 0.0204291688 | K55: -0.001544473014 | L55: 0.004112851314 | N55: =IF(N54="N/A","N/A",IF(N53="N/A","N/A",N53-N54)) -> 0.001130413941 | O55: =IF(O54="N/A","N/A",IF(O53="N/A","N/A",O53-O54)) -> -0.0009648259533 | P55: =IF(P54="N/A","N/A",IF(P53="N/A","N/A",P53-P54)) -> -0.01036015774 | Q55: =IF(Q54="N/A","N/A",IF(Q53="N/A","N/A",Q53-Q54)) -> -0.009300494114
A56: Governed Portfolio Enhanced with replacement equity fund(s) | D56: ='Tactical AA'!FI150 -> 0.01 | E56: ='Tactical AA'!FJ150 -> 0.01 | F56: ='Consolidated Performance Calc'!M112 -> 0.04346584364 | G56: ='Consolidated Performance Calc'!M113 -> 0.1369158853 | H56: ='Consolidated Performance Calc'!M114 -> 0.02667493387 | I56: ='Consolidated Performance Calc'!M115 -> 0.008850369924 | J56: ='Consolidated Performance Calc'!M116 -> 0.1822945384 | K56: ='Consolidated Performance Calc'!Q106 -> 0.06787511047 | L56: ='Consolidated Performance Calc'!Q105 -> 0.07750831363 | N56: ='Consolidated Performance Calc'!M81 -> 0.01894846416 | O56: ='Consolidated Performance Calc'!M80 -> 0.03092629333 | P56: ='Consolidated Performance Calc'!M79 -> 0.009971601793 | Q56: ='Consolidated Performance Calc'!M78 -> 0.03542834979
A57: =IF('TA Equity Calc'!$E$30="Yes","Composite Benchmark","-") -> Composite Benchmark | F57: ='Consolidated Performance Calc'!O112 -> 0.06393060692 | G57: ='Consolidated Performance Calc'!O113 -> 0.1264376451 | H57: ='Consolidated Performance Calc'!O114 -> 0.02347703021 | I57: ='Consolidated Performance Calc'!O115 -> 0.002405282535 | J57: ='Consolidated Performance Calc'!O116 -> 0.1623713934 | K57: ='Consolidated Performance Calc'!S106 -> 0.07038301713 | L57: ='Consolidated Performance Calc'!S105 -> 0.0739903453 | N57: ='Consolidated Performance Calc'!O81 -> 0.0181380749 | O57: ='Consolidated Performance Calc'!O80 -> 0.0311876061 | P57: ='Consolidated Performance Calc'!O79 -> 0.02186664898 | Q57: ='Consolidated Performance Calc'!O78 -> 0.04642982339
A58: =IF('TA Equity Calc'!$E$30="Yes","Difference","-") -> Difference | F58: =IF(F57="N/A","N/A",IF(F56="N/A","N/A",F56-F57)) -> -0.02046476327 | G58: =IF(G57="N/A","N/A",IF(G56="N/A","N/A",G56-G57)) -> 0.01047824024 | H58: 0.003197903656 | I58: 0.006445087389 | J58: 0.01992314501 | K58: -0.002507906662 | L58: 0.003517968327 | N58: =IF(N57="N/A","N/A",IF(N56="N/A","N/A",N56-N57)) -> 0.0008103892641 | O58: =IF(O57="N/A","N/A",IF(O56="N/A","N/A",O56-O57)) -> -0.0002613127692 | P58: =IF(P57="N/A","N/A",IF(P56="N/A","N/A",P56-P57)) -> -0.01189504719 | Q58: =IF(Q57="N/A","N/A",IF(Q56="N/A","N/A",Q56-Q57)) -> -0.0110014736
A59: Governed Portfolio Dynamic with replacement equity fund(s) | D59: ='Tactical AA'!FI179 -> 0.01 | E59: ='Tactical AA'!FJ179 -> 0.01 | F59: ='Consolidated Performance Calc'!M142 -> 0.04547524525 | G59: ='Consolidated Performance Calc'!M143 -> 0.1468221147 | H59: ='Consolidated Performance Calc'!M144 -> 0.04977608909 | I59: ='Consolidated Performance Calc'!M145 -> 0.002790901312 | J59: ='Consolidated Performance Calc'!M146 -> 0.2047597073 | K59: ='Consolidated Performance Calc'!Q136 -> 0.07962212983 | L59: ='Consolidated Performance Calc'!Q135 -> 0.08738547013 | N59: ='Consolidated Performance Calc'!M96 -> 0.01894846416 | O59: ='Consolidated Performance Calc'!M95 -> 0.03092629333 | P59: ='Consolidated Performance Calc'!M94 -> 0.009971601793 | Q59: ='Consolidated Performance Calc'!M93 -> 0.03542834979
A60: =IF('TA Equity Calc'!$E$30="Yes","Composite Benchmark","-") -> Composite Benchmark | F60: ='Consolidated Performance Calc'!O142 -> 0.06893974176 | G60: ='Consolidated Performance Calc'!O143 -> 0.1396557546 | H60: ='Consolidated Performance Calc'!O144 -> 0.04478173888 | I60: ='Consolidated Performance Calc'!O145 -> 0.003560034191 | J60: ='Consolidated Performance Calc'!O146 -> 0.1934156582 | K60: ='Consolidated Performance Calc'!S136 -> 0.08364151788 | L60: ='Consolidated Performance Calc'!S135 -> 0.08792125418 | N60: ='Consolidated Performance Calc'!O96 -> 0.0181380749 | O60: ='Consolidated Performance Calc'!O95 -> 0.0311876061 | P60: ='Consolidated Performance Calc'!O94 -> 0.02186664898 | Q60: ='Consolidated Performance Calc'!O93 -> 0.04642982339
A61: =IF('TA Equity Calc'!$E$30="Yes","Difference","-") -> Difference | F61: =IF(F60="N/A","N/A",IF(F59="N/A","N/A",F59-F60)) -> -0.02346449651 | G61: 0.007166360071 | H61: 0.004994350206 | I61: -0.0007691328798 | J61: 0.01134404913 | K61: -0.004019388048 | L61: -0.0005357840514 | N61: =IF(N60="N/A","N/A",IF(N59="N/A","N/A",N59-N60)) -> 0.0008103892641 | O61: =IF(O60="N/A","N/A",IF(O59="N/A","N/A",O59-O60)) -> -0.0002613127692 | P61: =IF(P60="N/A","N/A",IF(P59="N/A","N/A",P59-P60)) -> -0.01189504719 | Q61: =IF(Q60="N/A","N/A",IF(Q59="N/A","N/A",Q59-Q60)) -> -0.0110014736
A62: Governed Portfolio Total Equity with replacement equity fund(s) | D62: ='Tactical AA'!FI208 -> 0.01 | E62: ='Tactical AA'!FJ208 -> 0.01 | F62: =IFERROR('Consolidated Performance Calc'!M157,"") ->  | G62: =IFERROR('Consolidated Performance Calc'!M158,"") ->  | H62: =IFERROR('Consolidated Performance Calc'!M159,"") ->  | I62: =IFERROR('Consolidated Performance Calc'!M160,"") ->  | J62: =IFERROR('Consolidated Performance Calc'!M161,"") ->  | K62: =IFERROR('Consolidated Performance Calc'!Q151,"") ->  | L62: =IFERROR('Consolidated Performance Calc'!Q150,"") ->  | N62: ='Consolidated Performance Calc'!M111 -> 0.01947234807 | O62: ='Consolidated Performance Calc'!M110 -> 0.03723671055 | P62: ='Consolidated Performance Calc'!M109 -> 0.009208349187 | Q62: ='Consolidated Performance Calc'!M108 -> 0.04294183024
A63: =IF('TA Equity Calc'!$E$30="Yes","Composite Benchmark","-") -> Composite Benchmark | F63: =IFERROR('Consolidated Performance Calc'!O157,"") ->  | G63: =IFERROR('Consolidated Performance Calc'!O158,"") ->  | H63: =IFERROR('Consolidated Performance Calc'!O159,"") ->  | I63: =IFERROR('Consolidated Performance Calc'!O160,"") ->  | J63: =IFERROR('Consolidated Performance Calc'!O161,"") ->  | K63: =IFERROR('Consolidated Performance Calc'!S151,"") ->  | L63: =IFERROR('Consolidated Performance Calc'!S150,"") ->  | N63: ='Consolidated Performance Calc'!O111 -> 0.01960427022 | O63: ='Consolidated Performance Calc'!O110 -> 0.03551136639 | P63: ='Consolidated Performance Calc'!O109 -> 0.02186973523 | Q63: ='Consolidated Performance Calc'!O108 -> 0.05522763408
A64: =IF('TA Equity Calc'!$E$30="Yes","Difference","-") -> Difference | F64: =IFERROR(IF(F63="N/A","N/A",IF(F62="N/A","N/A",F62-F63)),"") ->  | N64: =IF(N63="N/A","N/A",IF(N62="N/A","N/A",N62-N63)) -> -0.0001319221582 | O64: =IF(O63="N/A","N/A",IF(O62="N/A","N/A",O62-O63)) -> 0.00172534416 | P64: =IF(P63="N/A","N/A",IF(P62="N/A","N/A",P62-P63)) -> -0.01266138604 | Q64: =IF(Q63="N/A","N/A",IF(Q62="N/A","N/A",Q62-Q63)) -> -0.01228580384
A66: =lipper_para&GP -> Source: Lipper, bid to bid, as at 30.06.25, Royal London, as at 30.06.25. All performance figures, including the figures shown for the growth in the benchmarks, have been calculated net of the Fund Management Charge. The Compound Annual Growth Rate (C.A.G.R.) is a measure of the investment returns, on a given fund, over the specified period. It allows for the impact of compounding of investment returns, which is particularly important where returns vary from one year to the next. Past performance is not a guide to the future. Prices can fall as well as rise meaning you may not get back the value of your original investment. Investment returns may fluctuate and are not guaranteed. Please note that the Governed Portfolios and their benchmarks are rebalanced on a monthly basis. This is the process of making sure the asset mix of the investments is maintained following movements due to fund price changes.
A67: =TER_para -> Total Expense Ratio (TER), covering calendar year 2023. The TER is a measure of the overall cost of a fund to the investor. It includes any audit, custodian, registration or compliance fees paid out of the fund’s assets plus the Fund Management Charge.
A68: =FTSE_caveat -> Note: The benchmarks used in this document include data from FTSE International Limited (“FTSE”) © FTSE 2025. “FTSE®” is a trade mark of the London Stock Exchange Group companies and is used by FTSE International Limited under licence. All rights in the FTSE indices and/or FTSE ratings vest in FTSE and/or its licensors. Neither FTSE nor its licensors accept any liability for any errors or omissions in the FTSE indices and/or FTSE ratings or underlying data. No further distribution of FTSE Data is permitted without FTSE’s express written consent.
A70: We're happy to provide your documents in a different format, such as Braille, large print or audio, just ask us when you get in touch. All of our printed products are produced on stock which is from FSC® certified forests.
A71: =Paras!B47 -> The Royal London Mutual Insurance Society Limited is authorised by the Prudential Regulation Authority and regulated by the Financial Conduct Authority and the Prudential Regulation Authority. The firm is on the Financial Services Register, registration number 117672. It provides life assurance and pensions. Registered in England and Wales number 99064. Registered office: 80 Fenchurch Street, London, EC3M 4BY. Royal London Marketing Limited is authorised and regulated by the Financial Conduct Authority and introduces Royal London’s customers to other insurance companies. The firm is on the Financial Services Register, registration number 302391. Registered in England and Wales number 4414137. Registered office: 80 Fenchurch Street, London, EC3M 4BY.
A72: =EDATE('Overcode Input'!$G$7,1) -> 2025-07-30 | K72: PDF P PD 0166
A74: Outputs - Without Equity Overcode
A79: ="PERFORMANCE STATISTICS TO END-"&UPPER(TEXT(input_MonthEnd,"Mmmm"))&" "&YEAR(input_MonthEnd) -> PERFORMANCE STATISTICS TO END-JUNE 2025
A80: GOVERNED PORTFOLIOS
A83: Default equity fund
A85: Fund name | E85: =IF(Input_AMCRebate=0.01,"Additional Fund",IF(Input_AMCRebate=0,"Fund","Product + Fund")) -> Fund | F85: Total Expense Ratio | G85: % of equity allocation
E86: Management
E87: Charge
A88: RLP Global Managed | E88: =INDEX('Codes Dump'!$E:$E,MATCH(A88,'Codes Dump'!$A:$A,0))-Input_AMCRebate -> 0.01 | F88: =INDEX('Codes Dump'!$F:$F,MATCH(A88,'Codes Dump'!$A:$A,0))-Input_AMCRebate -> 0.01 | G88: 1
A90: =Paras!B21 -> The figures in this document have been calculated net of the Fund Management Charge.
A91: =Paras!C4 -> The equity portion of the Governed Portfolios is, by default, invested in the RLP Global Managed Pension fund. The performance of the Governed Portfolios has been calculated assuming this default equity selection. The composite benchmark performance uses the indices which correspond to the underlying funds.
A92: =Paras!B25&Paras!B27 -> The performance of each portfolio is shown against its benchmark: a gauge against which the performance of the fund can be measured. Where a fund invests in a number of different geographical areas or asset types, a composite benchmark may be used. This is when a mixture of indices have been used as a performance gauge. The mix between these indices will usually reflect the expected asset allocation of the portfolio. The composite benchmark performance uses the indices which correspond to the underlying funds.
A93: =Paras!B29 -> Past performance is not a guide to the future. Prices can fall as well as rise meaning you may not get back the value of your original investment. Investment returns may fluctuate and are not guaranteed.
A95: Portfolio Name | D95: =D40 -> Average Fund Management Charge | E95: Average Total Expense Ratio | F95: Percentage Change | K95: Compound Annual Growth Rate (%) | N95: Percentage Change
F96: =F41 -> 30.06.24 | G96: 30.06.23 | H96: 30.06.22 | I96: 30.06.21 | J96: 30.06.20 | N96: 1 Month | O96: 3 Months | P96: 6 Months | Q96: 9 Months
F97: 30.06.25 | G97: 30.06.24 | H97: 30.06.23 | I97: 30.06.22 | J97: 30.06.21 | K97: 3 Years | L97: 5 Years | N97: =N42 -> 31.05.25 | O97: 31.03.25 | P97: 31.12.24 | Q97: 30.09.24
F98: %Chg | G98: %Chg | H98: %Chg | I98: %Chg | J98: %Chg | N98: 30.06.25 | O98: 30.06.25 | P98: 30.06.25 | Q98: 2025-06-30
A99: Governed Portfolio Defensive | D99: =$E$88 -> 0.01 | E99: =$F$88 -> 0.01 | F99: ='Consolidated Performance Calc'!N22 -> 0.03759958732 | G99: ='Consolidated Performance Calc'!N23 -> 0.07732607862 | H99: ='Consolidated Performance Calc'!N24 -> -0.0189767571 | I99: ='Consolidated Performance Calc'!N25 -> -0.01806082814 | J99: ='Consolidated Performance Calc'!N26 -> 0.06978754546 | K99: ='Consolidated Performance Calc'!R16 -> 0.03119287636 | L99: ='Consolidated Performance Calc'!R15 -> 0.02868154232 | N99: ='Consolidated Performance Calc'!N21 -> 0.01430902551 | O99: ='Consolidated Performance Calc'!N20 -> 0.0142161624 | P99: ='Consolidated Performance Calc'!N19 -> 0.01836297668 | Q99: ='Consolidated Performance Calc'!N18 -> 0.02302917276
A100: Composite benchmark | F100: ='Consolidated Performance Calc'!P22 -> 0.04205453413 | G100: ='Consolidated Performance Calc'!P23 -> 0.06565241206 | H100: ='Consolidated Performance Calc'!P24 -> -0.02334888333 | I100: ='Consolidated Performance Calc'!P25 -> -0.02469342413 | J100: ='Consolidated Performance Calc'!P26 -> 0.05310890272 | K100: ='Consolidated Performance Calc'!T16 -> 0.0273957642 | L100: ='Consolidated Performance Calc'!T15 -> 0.02180223662 | N100: ='Consolidated Performance Calc'!P21 -> 0.01177075745 | O100: ='Consolidated Performance Calc'!P20 -> 0.01558081043 | P100: ='Consolidated Performance Calc'!P19 -> 0.02263216258 | Q100: ='Consolidated Performance Calc'!P18 -> 0.02561916492
A101: Difference | F101: =IF(F100="N/A","N/A",F99-F100) -> -0.00445494681 | G101: =IF(G100="N/A","N/A",G99-G100) -> 0.01167366656 | H101: 0.004372126232 | I101: 0.00663259599 | J101: 0.01667864274 | K101: 0.003797112156 | L101: 0.006879305706 | N101: =IF(N100="N/A","N/A",N99-N100) -> 0.002538268058 | O101: -0.001364648033 | P101: -0.004269185904 | Q101: -0.002589992161
A102: Governed Portfolio Conservative | D102: =$E$88 -> 0.01 | E102: =$F$88 -> 0.01 | F102: ='Consolidated Performance Calc'!N37 -> 0.03868120091 | G102: ='Consolidated Performance Calc'!N38 -> 0.09787497918 | H102: ='Consolidated Performance Calc'!N39 -> -0.005561750233 | I102: ='Consolidated Performance Calc'!N40 -> -0.0003942628985 | J102: ='Consolidated Performance Calc'!N41 -> 0.1029709231 | K102: ='Consolidated Performance Calc'!R31 -> 0.04276805145 | L102: ='Consolidated Performance Calc'!R30 -> 0.04566008798 | N102: ='Consolidated Performance Calc'!N36 -> 0.01594098862 | O102: ='Consolidated Performance Calc'!N35 -> 0.02140491302 | P102: ='Consolidated Performance Calc'!N34 -> 0.01438193123 | Q102: ='Consolidated Performance Calc'!N33 -> 0.02884042875
A103: Composite benchmark | F103: ='Consolidated Performance Calc'!P37 -> 0.04923578501 | G103: ='Consolidated Performance Calc'!P38 -> 0.08651335173 | H103: ='Consolidated Performance Calc'!P39 -> -0.01036276186 | I103: ='Consolidated Performance Calc'!P40 -> -0.006299608638 | J103: ='Consolidated Performance Calc'!P41 -> 0.0849122454 | K103: ='Consolidated Performance Calc'!T31 -> 0.04098738068 | L103: ='Consolidated Performance Calc'!T30 -> 0.03991427232 | N103: ='Consolidated Performance Calc'!P36 -> 0.01426538819 | O103: ='Consolidated Performance Calc'!P35 -> 0.02237724391 | P103: ='Consolidated Performance Calc'!P34 -> 0.02239308143 | Q103: ='Consolidated Performance Calc'!P33 -> 0.03549303739
A104: Difference | F104: =IF(F103="N/A","N/A",F102-F103) -> -0.0105545841 | G104: =IF(G103="N/A","N/A",G102-G103) -> 0.01136162746 | H104: 0.004801011624 | I104: 0.00590534574 | J104: 0.01805867766 | K104: 0.001780670775 | L104: 0.005745815659 | N104: =IF(N103="N/A","N/A",N102-N103) -> 0.001675600438 | O104: -0.0009723308942 | P104: -0.008011150206 | Q104: -0.006652608638
A105: Governed Portfolio Moderate | D105: =$E$88 -> 0.01 | E105: =$F$88 -> 0.01 | F105: ='Consolidated Performance Calc'!N52 -> 0.03914310173 | G105: ='Consolidated Performance Calc'!N53 -> 0.1074164277 | H105: ='Consolidated Performance Calc'!N54 -> -0.005294914684 | I105: ='Consolidated Performance Calc'!N55 -> -0.01822742907 | J105: ='Consolidated Performance Calc'!N56 -> 0.1212880815 | K105: ='Consolidated Performance Calc'!R46 -> 0.04602574279 | L105: ='Consolidated Performance Calc'!R45 -> 0.04729915752 | N105: ='Consolidated Performance Calc'!N51 -> 0.01718733617 | O105: ='Consolidated Performance Calc'!N50 -> 0.02555412269 | P105: ='Consolidated Performance Calc'!N49 -> 0.01201750853 | Q105: ='Consolidated Performance Calc'!N48 -> 0.03155641632
A106: Composite benchmark | F106: ='Consolidated Performance Calc'!P52 -> 0.05355540023 | G106: ='Consolidated Performance Calc'!P53 -> 0.09647650607 | H106: ='Consolidated Performance Calc'!P54 -> -0.01057816038 | I106: ='Consolidated Performance Calc'!P55 -> -0.0247197936 | J106: ='Consolidated Performance Calc'!P56 -> 0.1030245064 | K106: ='Consolidated Performance Calc'!T46 -> 0.04551053981 | L106: ='Consolidated Performance Calc'!T45 -> 0.04217517497 | N106: ='Consolidated Performance Calc'!P51 -> 0.01605692223 | O106: ='Consolidated Performance Calc'!P50 -> 0.02651894865 | P106: ='Consolidated Performance Calc'!P49 -> 0.02237766628 | Q106: ='Consolidated Performance Calc'!P48 -> 0.04085691044
A107: Difference | F107: =IF(F106="N/A","N/A",F105-F106) -> -0.0144122985 | G107: =IF(G106="N/A","N/A",G105-G106) -> 0.01093992163 | H107: 0.005283245696 | I107: 0.00649236453 | J107: 0.01826357515 | K107: 0.0005152029832 | L107: 0.005123982546 | N107: =IF(N106="N/A","N/A",N105-N106) -> 0.001130413941 | O107: -0.0009648259533 | P107: -0.01036015774 | Q107: -0.009300494114
A108: Governed Portfolio Growth | D108: =$E$88 -> 0.01 | E108: =$F$88 -> 0.01 | F108: ='Consolidated Performance Calc'!N82 -> 0.0396980858 | G108: ='Consolidated Performance Calc'!N83 -> 0.1243032905 | H108: ='Consolidated Performance Calc'!N84 -> 0.01167822528 | I108: ='Consolidated Performance Calc'!N85 -> -0.004223427045 | J108: ='Consolidated Performance Calc'!N86 -> 0.1553837314 | K108: ='Consolidated Performance Calc'!R76 -> 0.05743957111 | L108: ='Consolidated Performance Calc'!R75 -> 0.06348069309 | N108: ='Consolidated Performance Calc'!N66 -> 0.01718733617 | O108: ='Consolidated Performance Calc'!N65 -> 0.02555412269 | P108: ='Consolidated Performance Calc'!N64 -> 0.01201750853 | Q108: ='Consolidated Performance Calc'!N63 -> 0.03155641632
A109: Composite benchmark | F109: ='Consolidated Performance Calc'!P82 -> 0.05785909956 | G109: ='Consolidated Performance Calc'!P83 -> 0.1130915891 | H109: ='Consolidated Performance Calc'!P84 -> 0.008736446806 | I109: ='Consolidated Performance Calc'!P85 -> -0.01010841351 | J109: ='Consolidated Performance Calc'!P86 -> 0.1349545626 | K109: ='Consolidated Performance Calc'!T76 -> 0.05898404412 | L109: ='Consolidated Performance Calc'!T75 -> 0.05936784178 | N109: ='Consolidated Performance Calc'!P66 -> 0.01605692223 | O109: ='Consolidated Performance Calc'!P65 -> 0.02651894865 | P109: ='Consolidated Performance Calc'!P64 -> 0.02237766628 | Q109: ='Consolidated Performance Calc'!P63 -> 0.04085691044
A110: Difference | F110: =IF(F109="N/A","N/A",F108-F109) -> -0.01816101376 | G110: =IF(G109="N/A","N/A",G108-G109) -> 0.0112117014 | H110: 0.002941778474 | I110: 0.005884986468 | J110: 0.0204291688 | K110: -0.001544473014 | L110: 0.004112851314 | N110: =IF(N109="N/A","N/A",N108-N109) -> 0.001130413941 | O110: -0.0009648259533 | P110: -0.01036015774 | Q110: -0.009300494114
A111: Governed Portfolio Enhanced | D111: =$E$88 -> 0.01 | E111: =$F$88 -> 0.01 | F111: ='Consolidated Performance Calc'!N112 -> 0.04346584364 | G111: ='Consolidated Performance Calc'!N113 -> 0.1369158853 | H111: ='Consolidated Performance Calc'!N114 -> 0.02667493387 | I111: ='Consolidated Performance Calc'!N115 -> 0.008850369924 | J111: ='Consolidated Performance Calc'!N116 -> 0.1822945384 | K111: ='Consolidated Performance Calc'!R106 -> 0.06787511047 | L111: ='Consolidated Performance Calc'!R105 -> 0.07750831363 | N111: ='Consolidated Performance Calc'!N81 -> 0.01894846416 | O111: ='Consolidated Performance Calc'!N80 -> 0.03092629333 | P111: ='Consolidated Performance Calc'!N79 -> 0.009971601793 | Q111: ='Consolidated Performance Calc'!N78 -> 0.03542834979
A112: Composite benchmark | F112: ='Consolidated Performance Calc'!P112 -> 0.06393060692 | G112: ='Consolidated Performance Calc'!P113 -> 0.1264376451 | H112: ='Consolidated Performance Calc'!P114 -> 0.02347703021 | I112: ='Consolidated Performance Calc'!P115 -> 0.002405282535 | J112: ='Consolidated Performance Calc'!P116 -> 0.1623713934 | K112: ='Consolidated Performance Calc'!T106 -> 0.07038301713 | L112: ='Consolidated Performance Calc'!T105 -> 0.0739903453 | N112: ='Consolidated Performance Calc'!P81 -> 0.0181380749 | O112: ='Consolidated Performance Calc'!P80 -> 0.0311876061 | P112: ='Consolidated Performance Calc'!P79 -> 0.02186664898 | Q112: ='Consolidated Performance Calc'!P78 -> 0.04642982339
A113: Difference | F113: =IF(F112="N/A","N/A",F111-F112) -> -0.02046476327 | G113: =IF(G112="N/A","N/A",G111-G112) -> 0.01047824024 | H113: 0.003197903656 | I113: 0.006445087389 | J113: 0.01992314501 | K113: -0.002507906662 | L113: 0.003517968327 | N113: =IF(N112="N/A","N/A",N111-N112) -> 0.0008103892641 | O113: -0.0002613127692 | P113: -0.01189504719 | Q113: -0.0110014736
A114: Governed Portfolio Dynamic | D114: =$E$88 -> 0.01 | E114: =$F$88 -> 0.01 | F114: ='Consolidated Performance Calc'!N142 -> 0.04547524525 | G114: ='Consolidated Performance Calc'!N143 -> 0.1468221147 | H114: ='Consolidated Performance Calc'!N144 -> 0.04977608909 | I114: ='Consolidated Performance Calc'!N145 -> 0.002790901312 | J114: ='Consolidated Performance Calc'!N146 -> 0.2047597073 | K114: ='Consolidated Performance Calc'!R136 -> 0.07962212983 | L114: ='Consolidated Performance Calc'!R135 -> 0.08738547013 | N114: ='Consolidated Performance Calc'!N96 -> 0.01894846416 | O114: ='Consolidated Performance Calc'!N95 -> 0.03092629333 | P114: ='Consolidated Performance Calc'!N94 -> 0.009971601793 | Q114: ='Consolidated Performance Calc'!N93 -> 0.03542834979
A115: Composite benchmark | F115: ='Consolidated Performance Calc'!P142 -> 0.06893974176 | G115: ='Consolidated Performance Calc'!P143 -> 0.1396557546 | H115: ='Consolidated Performance Calc'!P144 -> 0.04478173888 | I115: ='Consolidated Performance Calc'!P145 -> 0.003560034191 | J115: ='Consolidated Performance Calc'!P146 -> 0.1934156582 | K115: ='Consolidated Performance Calc'!T136 -> 0.08364151788 | L115: ='Consolidated Performance Calc'!T135 -> 0.08792125418 | N115: ='Consolidated Performance Calc'!P96 -> 0.0181380749 | O115: ='Consolidated Performance Calc'!P95 -> 0.0311876061 | P115: ='Consolidated Performance Calc'!P94 -> 0.02186664898 | Q115: ='Consolidated Performance Calc'!P93 -> 0.04642982339
A116: Difference | F116: =IF(F115="N/A","N/A",F114-F115) -> -0.02346449651 | G116: =IF(G115="N/A","N/A",G114-G115) -> 0.007166360071 | H116: 0.004994350206 | I116: -0.0007691328798 | J116: =IF(J115="N/A","N/A",J114-J115) -> 0.01134404913 | K116: -0.004019388048 | L116: -0.0005357840514 | N116: =IF(N115="N/A","N/A",N114-N115) -> 0.0008103892641 | O116: -0.0002613127692 | P116: -0.01189504719 | Q116: -0.0110014736
A117: Governed Portfolio Total Equity | D117: =$E$88 -> 0.01 | E117: =$F$88 -> 0.01 | F117: =IFERROR('Consolidated Performance Calc'!N157,"") ->  | G117: =IFERROR('Consolidated Performance Calc'!N158,"") ->  | H117: =IFERROR('Consolidated Performance Calc'!N159,"") ->  | I117: =IFERROR('Consolidated Performance Calc'!N160,"") ->  | J117: =IFERROR('Consolidated Performance Calc'!N161,"") ->  | K117: =IFERROR('Consolidated Performance Calc'!R151,"") ->  | L117: =IFERROR('Consolidated Performance Calc'!R150,"") ->  | N117: ='Consolidated Performance Calc'!N111 -> 0.01947234807 | O117: ='Consolidated Performance Calc'!N110 -> 0.03723671055 | P117: ='Consolidated Performance Calc'!N109 -> 0.009208349187 | Q117: ='Consolidated Performance Calc'!N108 -> 0.04294183024
A118: Composite benchmark | F118: =IFERROR('Consolidated Performance Calc'!P157,"") ->  | G118: =IFERROR('Consolidated Performance Calc'!P158,"") ->  | H118: =IFERROR('Consolidated Performance Calc'!P159,"") ->  | I118: =IFERROR('Consolidated Performance Calc'!P160,"") ->  | J118: =IFERROR('Consolidated Performance Calc'!P161,"") ->  | K118: =IFERROR('Consolidated Performance Calc'!T151,"") ->  | L118: =IFERROR('Consolidated Performance Calc'!T150,"") ->  | N118: ='Consolidated Performance Calc'!P111 -> 0.01960427022 | O118: ='Consolidated Performance Calc'!P110 -> 0.03551136639 | P118: ='Consolidated Performance Calc'!P109 -> 0.02186973523 | Q118: ='Consolidated Performance Calc'!P108 -> 0.05522763408
A119: Difference | F119: =IFERROR(IF(F118="N/A","N/A",F117-F118),"") ->  | N119: =IF(N118="N/A","N/A",N117-N118) -> -0.0001319221582 | O119: 0.00172534416 | P119: -0.01266138604 | Q119: -0.01228580384
A121: pgr% is the percentage change in prices
A123: =lipper_para&GP -> Source: Lipper, bid to bid, as at 30.06.25, Royal London, as at 30.06.25. All performance figures, including the figures shown for the growth in the benchmarks, have been calculated net of the Fund Management Charge. The Compound Annual Growth Rate (C.A.G.R.) is a measure of the investment returns, on a given fund, over the specified period. It allows for the impact of compounding of investment returns, which is particularly important where returns vary from one year to the next. Past performance is not a guide to the future. Prices can fall as well as rise meaning you may not get back the value of your original investment. Investment returns may fluctuate and are not guaranteed. Please note that the Governed Portfolios and their benchmarks are rebalanced on a monthly basis. This is the process of making sure the asset mix of the investments is maintained following movements due to fund price changes.
A124: =TER_para -> Total Expense Ratio (TER), covering calendar year 2023. The TER is a measure of the overall cost of a fund to the investor. It includes any audit, custodian, registration or compliance fees paid out of the fund’s assets plus the Fund Management Charge.
A125: =FTSE_caveat -> Note: The benchmarks used in this document include data from FTSE International Limited (“FTSE”) © FTSE 2025. “FTSE®” is a trade mark of the London Stock Exchange Group companies and is used by FTSE International Limited under licence. All rights in the FTSE indices and/or FTSE ratings vest in FTSE and/or its licensors. Neither FTSE nor its licensors accept any liability for any errors or omissions in the FTSE indices and/or FTSE ratings or underlying data. No further distribution of FTSE Data is permitted without FTSE’s express written consent.
A128: We're happy to provide your documents in a different format, such as Braille, large print or audio, just ask us when you get in touch. All of our printed products are produced on stock which is from FSC® certified forests.
A129: =Paras!B47 -> The Royal London Mutual Insurance Society Limited is authorised by the Prudential Regulation Authority and regulated by the Financial Conduct Authority and the Prudential Regulation Authority. The firm is on the Financial Services Register, registration number 117672. It provides life assurance and pensions. Registered in England and Wales number 99064. Registered office: 80 Fenchurch Street, London, EC3M 4BY. Royal London Marketing Limited is authorised and regulated by the Financial Conduct Authority and introduces Royal London’s customers to other insurance companies. The firm is on the Financial Services Register, registration number 302391. Registered in England and Wales number 4414137. Registered office: 80 Fenchurch Street, London, EC3M 4BY.
A130: =EDATE('Overcode Input'!$G$7,1) -> 2025-07-30 | K130: PDF P PD 0167

Sheet GRIP Performance
A1: Outputs - With Equity Overcode
A5: ="PERFORMANCE STATISTICS TO END-"&UPPER(TEXT(input_MonthEnd,"Mmmm"))&" "&YEAR(input_MonthEnd) -> PERFORMANCE STATISTICS TO END-JUNE 2025
A6: GOVERNED RETIREMENT INCOME PORTFOLIOS
A8: Replacement equity funds
A9: Fund name | E9: =IF(Input_AMCRebate=0.01,"Additional Fund",IF(Input_AMCRebate=0,"Fund","Product + Fund")) -> Fund | F9: Total Expense Ratio | G9: % of equity allocation
E10: Management
E11: Charge
A12: =IF('Overcode Input'!B11="","",'Overcode Input'!B11) -> RLP Global Managed | E12: =IF('Overcode Input'!F11="","",'Overcode Input'!F11) -> 0.01 | F12: =IF('Overcode Input'!G11="","",'Overcode Input'!G11) -> 0.01 | G12: =IF('Overcode Input'!E11="","",'Overcode Input'!E11) -> 1 | H12: =IF('TA Equity Calc'!E30="Yes","","No benchmark comparison shown due to pricing delay of one or more selected funds.") -> 
A13: =IF('Overcode Input'!B12="","",'Overcode Input'!B12) ->  | E13: =IF('Overcode Input'!F12="","",'Overcode Input'!F12) ->  | F13: =IF('Overcode Input'!G12="","",'Overcode Input'!G12) ->  | G13: =IF('Overcode Input'!E12="","",'Overcode Input'!E12) -> 
A14: =IF('Overcode Input'!B13="","",'Overcode Input'!B13) ->  | E14: =IF('Overcode Input'!F13="","",'Overcode Input'!F13) ->  | F14: =IF('Overcode Input'!G13="","",'Overcode Input'!G13) ->  | G14: =IF('Overcode Input'!E13="","",'Overcode Input'!E13) -> 
A15: =IF('Overcode Input'!B14="","",'Overcode Input'!B14) ->  | E15: =IF('Overcode Input'!F14="","",'Overcode Input'!F14) ->  | F15: =IF('Overcode Input'!G14="","",'Overcode Input'!G14) ->  | G15: =IF('Overcode Input'!E14="","",'Overcode Input'!E14) -> 
A16: =IF('Overcode Input'!B15="","",'Overcode Input'!B15) ->  | E16: =IF('Overcode Input'!F15="","",'Overcode Input'!F15) ->  | F16: =IF('Overcode Input'!G15="","",'Overcode Input'!G15) ->  | G16: =IF('Overcode Input'!E15="","",'Overcode Input'!E15) -> 
A17: =IF('Overcode Input'!B16="","",'Overcode Input'!B16) ->  | E17: =IF('Overcode Input'!F16="","",'Overcode Input'!F16) ->  | F17: =IF('Overcode Input'!G16="","",'Overcode Input'!G16) ->  | G17: =IF('Overcode Input'!E16="","",'Overcode Input'!E16) -> 
A18: =IF('Overcode Input'!B17="","",'Overcode Input'!B17) ->  | E18: =IF('Overcode Input'!F17="","",'Overcode Input'!F17) ->  | F18: =IF('Overcode Input'!G17="","",'Overcode Input'!G17) ->  | G18: =IF('Overcode Input'!E17="","",'Overcode Input'!E17) -> 
A19: =IF('Overcode Input'!B18="","",'Overcode Input'!B18) ->  | E19: =IF('Overcode Input'!F18="","",'Overcode Input'!F18) ->  | F19: =IF('Overcode Input'!G18="","",'Overcode Input'!G18) ->  | G19: =IF('Overcode Input'!E18="","",'Overcode Input'!E18) -> 
A20: =IF('Overcode Input'!B19="","",'Overcode Input'!B19) ->  | E20: =IF('Overcode Input'!F19="","",'Overcode Input'!F19) ->  | F20: =IF('Overcode Input'!G19="","",'Overcode Input'!G19) ->  | G20: =IF('Overcode Input'!E19="","",'Overcode Input'!E19) -> 
A21: =IF('Overcode Input'!B20="","",'Overcode Input'!B20) ->  | E21: =IF('Overcode Input'!F20="","",'Overcode Input'!F20) ->  | F21: =IF('Overcode Input'!G20="","",'Overcode Input'!G20) ->  | G21: =IF('Overcode Input'!E20="","",'Overcode Input'!E20) -> 
A22: =IF('Overcode Input'!B21="","",'Overcode Input'!B21) ->  | E22: =IF('Overcode Input'!F21="","",'Overcode Input'!F21) ->  | F22: =IF('Overcode Input'!G21="","",'Overcode Input'!G21) ->  | G22: =IF('Overcode Input'!E21="","",'Overcode Input'!E21) -> 
A23: =IF('Overcode Input'!B22="","",'Overcode Input'!B22) ->  | E23: =IF('Overcode Input'!F22="","",'Overcode Input'!F22) ->  | F23: =IF('Overcode Input'!G22="","",'Overcode Input'!G22) ->  | G23: =IF('Overcode Input'!E22="","",'Overcode Input'!E22) -> 
A24: =IF('Overcode Input'!B23="","",'Overcode Input'!B23) ->  | E24: =IF('Overcode Input'!F23="","",'Overcode Input'!F23) ->  | F24: =IF('Overcode Input'!G23="","",'Overcode Input'!G23) ->  | G24: =IF('Overcode Input'!E23="","",'Overcode Input'!E23) -> 
A25: =IF('Overcode Input'!B24="","",'Overcode Input'!B24) ->  | E25: =IF('Overcode Input'!F24="","",'Overcode Input'!F24) ->  | F25: =IF('Overcode Input'!G24="","",'Overcode Input'!G24) ->  | G25: =IF('Overcode Input'!E24="","",'Overcode Input'!E24) -> 
A26: =IF('Overcode Input'!B25="","",'Overcode Input'!B25) ->  | E26: =IF('Overcode Input'!F25="","",'Overcode Input'!F25) ->  | F26: =IF('Overcode Input'!G25="","",'Overcode Input'!G25) ->  | G26: =IF('Overcode Input'!E25="","",'Overcode Input'!E25) -> 
A27: =IF('Overcode Input'!B26="","",'Overcode Input'!B26) ->  | E27: =IF('Overcode Input'!F26="","",'Overcode Input'!F26) ->  | F27: =IF('Overcode Input'!G26="","",'Overcode Input'!G26) ->  | G27: =IF('Overcode Input'!E26="","",'Overcode Input'!E26) -> 
A28: =IF('Overcode Input'!B27="","",'Overcode Input'!B27) ->  | E28: =IF('Overcode Input'!F27="","",'Overcode Input'!F27) ->  | F28: =IF('Overcode Input'!G27="","",'Overcode Input'!G27) ->  | G28: =IF('Overcode Input'!E27="","",'Overcode Input'!E27) -> 
A29: =IF('Overcode Input'!B28="","",'Overcode Input'!B28) ->  | E29: =IF('Overcode Input'!F28="","",'Overcode Input'!F28) ->  | F29: =IF('Overcode Input'!G28="","",'Overcode Input'!G28) ->  | G29: =IF('Overcode Input'!E28="","",'Overcode Input'!E28) -> 
A30: =IF('Overcode Input'!B29="","",'Overcode Input'!B29) ->  | E30: =IF('Overcode Input'!F29="","",'Overcode Input'!F29) ->  | F30: =IF('Overcode Input'!G29="","",'Overcode Input'!G29) ->  | G30: =IF('Overcode Input'!E29="","",'Overcode Input'!E29) -> 
A31: =IF('Overcode Input'!B30="","",'Overcode Input'!B30) ->  | E31: =IF('Overcode Input'!F30="","",'Overcode Input'!F30) ->  | F31: =IF('Overcode Input'!G30="","",'Overcode Input'!G30) ->  | G31: =IF('Overcode Input'!E30="","",'Overcode Input'!E30) -> 
A33: GRIP performance - with replacement equity funds
A34: =Paras!B21 -> The figures in this document have been calculated net of the Fund Management Charge.
A35: =Paras!C7&Paras!C8 -> This table gives simulated past performance of the GRIPs assuming that the equity portion was invested in the replacement funds shown. It should be noted that some funds come with an additional management charge to the standard 1% applicable to RLAM funds. The overall charge depends on the current asset allocation. The management charges shown in the table correspond to the asset allocation at 30.06.25 only.
A36: =Paras!B25&Paras!B26 -> The performance of each portfolio is shown against its benchmark: a gauge against which the performance of the fund can be measured. Where a fund invests in a number of different geographical areas or asset types, a composite benchmark may be used. This is when a mixture of indices have been used as a performance gauge. The mix between these indices will usually reflect the expected asset allocation of the portfolio. The composite benchmark performance uses the indices which correspond to the default equity fund, not the replacement fund or funds.
A37: =Paras!B29 -> Past performance is not a guide to the future. Prices can fall as well as rise meaning you may not get back the value of your original investment. Investment returns may fluctuate and are not guaranteed.
A39: Portfolio Name | D39: ="Average "&E9&" Management Charge" -> Average Fund Management Charge | E39: Average Total Expense Ratio | F39: Percentage Change | K39: Compound Annual Growth Rate (%)
F40: =TEXT('Consolidated Performance Calc'!C22,"dd.mm.yy") -> 30.06.24 | G40: =TEXT('Consolidated Performance Calc'!C23,"dd.mm.yy") -> 30.06.23 | H40: =TEXT('Consolidated Performance Calc'!C24,"dd.mm.yy") -> 30.06.22 | I40: =TEXT('Consolidated Performance Calc'!C25,"dd.mm.yy") -> 30.06.21 | J40: =TEXT('Consolidated Performance Calc'!C26,"dd.mm.yy") -> 30.06.20
F41: =TEXT('Consolidated Performance Calc'!D22,"dd.mm.yy") -> 30.06.25 | G41: =TEXT('Consolidated Performance Calc'!D23,"dd.mm.yy") -> 30.06.24 | H41: =TEXT('Consolidated Performance Calc'!D24,"dd.mm.yy") -> 30.06.23 | I41: =TEXT('Consolidated Performance Calc'!D25,"dd.mm.yy") -> 30.06.22 | J41: =TEXT('Consolidated Performance Calc'!D26,"dd.mm.yy") -> 30.06.21 | K41: 3 Years | L41: 5 Years
F42: %Chg | G42: %Chg | H42: %Chg | I42: %Chg | J42: %Chg
A43: GRIP 1 with replacement equity fund(s) | D43: ='Tactical AA'!FI326 -> 0.01 | E43: ='Tactical AA'!FJ326 -> 0.01 | F43: ='Consolidated Performance Calc'!M173 -> 0.03521320886 | G43: ='Consolidated Performance Calc'!M174 -> 0.07798533309 | H43: ='Consolidated Performance Calc'!M175 -> -0.04433402431 | I43: ='Consolidated Performance Calc'!M176 -> -0.04672988303 | J43: ='Consolidated Performance Calc'!M177 -> 0.04329931302 | K43: ='Consolidated Performance Calc'!Q167 -> 0.0216632225 | L43: ='Consolidated Performance Calc'!Q166 -> 0.0118402127
A44: =IF('TA Equity Calc'!$E$30="Yes","Composite Benchmark","-") -> Composite Benchmark | F44: ='Consolidated Performance Calc'!O173 -> 0.03751872426 | G44: ='Consolidated Performance Calc'!O174 -> 0.06515823826 | H44: ='Consolidated Performance Calc'!O175 -> -0.05622053465 | I44: ='Consolidated Performance Calc'!O176 -> -0.06168010543 | J44: ='Consolidated Performance Calc'!O177 -> 0.02464181595 | K44: ='Consolidated Performance Calc'!S167 -> 0.01411678929 | L44: ='Consolidated Performance Calc'!S166 -> 0.0005541271801
A45: =IF('TA Equity Calc'!$E$30="Yes","Difference","-") -> Difference | F45: =IF(F44="N/A","N/A",IF(F43="N/A","N/A",F43-F44)) -> -0.002305515394 | G45: 0.01282709482 | H45: 0.01188651034 | I45: 0.01495022241 | J45: 0.01865749707 | K45: 0.007546433208 | L45: 0.01128608552
A46: GRIP 2 with replacement equity fund(s) | D46: ='Tactical AA'!FI355 -> 0.01 | E46: ='Tactical AA'!FJ355 -> 0.01 | F46: ='Consolidated Performance Calc'!M188 -> 0.0362259064 | G46: ='Consolidated Performance Calc'!M189 -> 0.08842153302 | H46: ='Consolidated Performance Calc'!M190 -> -0.0285993887 | I46: ='Consolidated Performance Calc'!M191 -> -0.03116535115 | J46: ='Consolidated Performance Calc'!M192 -> 0.0728869909 | K46: ='Consolidated Performance Calc'!Q182 -> 0.0308716323 | L46: ='Consolidated Performance Calc'!Q181 -> 0.02632411565
A47: =IF('TA Equity Calc'!$E$30="Yes","Composite Benchmark","-") -> Composite Benchmark | F47: ='Consolidated Performance Calc'!O188 -> 0.0421361739 | G47: ='Consolidated Performance Calc'!O189 -> 0.07554897889 | H47: ='Consolidated Performance Calc'!O190 -> -0.0385859554 | I47: ='Consolidated Performance Calc'!O191 -> -0.04637768282 | J47: ='Consolidated Performance Calc'!O192 -> 0.05182437135 | K47: ='Consolidated Performance Calc'!S182 -> 0.02520764172 | L47: ='Consolidated Performance Calc'!S181 -> 0.0156714663
A48: =IF('TA Equity Calc'!$E$30="Yes","Difference","-") -> Difference | F48: =IF(F47="N/A","N/A",IF(F46="N/A","N/A",F46-F47)) -> -0.005910267494 | G48: 0.01287255413 | H48: 0.009986566702 | I48: 0.01521233167 | J48: 0.02106261955 | K48: 0.005663990575 | L48: 0.01065264936
A49: GRIP 3 with replacement equity fund(s) | D49: ='Tactical AA'!FI384 -> 0.01 | E49: ='Tactical AA'!FJ384 -> 0.01 | F49: ='Consolidated Performance Calc'!M203 -> 0.03681913241 | G49: ='Consolidated Performance Calc'!M204 -> 0.096090334 | H49: ='Consolidated Performance Calc'!M205 -> -0.01553376936 | I49: ='Consolidated Performance Calc'!M206 -> -0.02466480371 | J49: ='Consolidated Performance Calc'!M207 -> 0.1041048933 | K49: ='Consolidated Performance Calc'!Q197 -> 0.03809053502 | L49: ='Consolidated Performance Calc'!Q196 -> 0.03794422905
A50: =IF('TA Equity Calc'!$E$30="Yes","Composite Benchmark","-") -> Composite Benchmark | F50: ='Consolidated Performance Calc'!O203 -> 0.04478787055 | G50: ='Consolidated Performance Calc'!O204 -> 0.08356768987 | H50: ='Consolidated Performance Calc'!O205 -> -0.02424725346 | I50: ='Consolidated Performance Calc'!O206 -> -0.03986306283 | J50: ='Consolidated Performance Calc'!O207 -> 0.08062354711 | K50: ='Consolidated Performance Calc'!S197 -> 0.0337007651 | L50: ='Consolidated Performance Calc'!S196 -> 0.02763721507
A51: =IF('TA Equity Calc'!$E$30="Yes","Difference","-") -> Difference | F51: =IF(F50="N/A","N/A",IF(F49="N/A","N/A",F49-F50)) -> -0.007968738142 | G51: 0.01252264413 | H51: 0.008713484107 | I51: 0.01519825912 | J51: 0.02348134624 | K51: 0.004389769927 | L51: 0.01030701399
A52: GRIP 4 with replacement equity fund(s) | D52: ='Tactical AA'!FI413 -> 0.01 | E52: ='Tactical AA'!FJ413 -> 0.01 | F52: ='Consolidated Performance Calc'!M218 -> 0.04076223285 | G52: ='Consolidated Performance Calc'!M219 -> 0.1087905178 | H52: ='Consolidated Performance Calc'!M220 -> 0.00363838997 | I52: ='Consolidated Performance Calc'!M221 -> -0.007987303024 | J52: ='Consolidated Performance Calc'!M222 -> 0.1366257741 | K52: ='Consolidated Performance Calc'!Q212 -> 0.05012266865 | L52: ='Consolidated Performance Calc'!Q211 -> 0.05479948433
A53: =IF('TA Equity Calc'!$E$30="Yes","Composite Benchmark","-") -> Composite Benchmark | F53: ='Consolidated Performance Calc'!O218 -> 0.05197750811 | G53: ='Consolidated Performance Calc'!O219 -> 0.09613202085 | H53: ='Consolidated Performance Calc'!O220 -> -0.002921196749 | I53: ='Consolidated Performance Calc'!O221 -> -0.02574290408 | J53: ='Consolidated Performance Calc'!O222 -> 0.1090619682 | K53: ='Consolidated Performance Calc'!S212 -> 0.04756546034 | L53: ='Consolidated Performance Calc'!S211 -> 0.04432414226
A54: =IF('TA Equity Calc'!$E$30="Yes","Difference","-") -> Difference | F54: =IF(F53="N/A","N/A",IF(F52="N/A","N/A",F52-F53)) -> -0.01121527527 | G54: 0.01265849699 | H54: 0.006559586718 | I54: 0.01775560105 | J54: 0.0275638059 | K54: 0.00255720831 | L54: 0.01047534207
A55: GRIP 5 with replacement equity fund(s) | D55: ='Tactical AA'!FI442 -> 0.01 | E55: ='Tactical AA'!FJ442 -> 0.01 | F55: ='Consolidated Performance Calc'!M233 -> 0.04256106444 | G55: ='Consolidated Performance Calc'!M234 -> 0.1205453329 | H55: ='Consolidated Performance Calc'!M235 -> 0.01915903845 | I55: ='Consolidated Performance Calc'!M236 -> -0.005899518386 | J55: ='Consolidated Performance Calc'!M237 -> 0.1646621273 | K55: ='Consolidated Performance Calc'!Q227 -> 0.05982603957 | L55: ='Consolidated Performance Calc'!Q226 -> 0.06626549999
A56: =IF('TA Equity Calc'!$E$30="Yes","Composite Benchmark","-") -> Composite Benchmark | F56: ='Consolidated Performance Calc'!O233 -> 0.05684261072 | G56: ='Consolidated Performance Calc'!O234 -> 0.1086456477 | H56: ='Consolidated Performance Calc'!O235 -> 0.01326538983 | I56: ='Consolidated Performance Calc'!O236 -> -0.02421320302 | J56: ='Consolidated Performance Calc'!O237 -> 0.1358862422 | K56: ='Consolidated Performance Calc'!S227 -> 0.05881339594 | L56: ='Consolidated Performance Calc'!S226 -> 0.05640428427
A57: =IF('TA Equity Calc'!$E$30="Yes","Difference","-") -> Difference | F57: =IF(F56="N/A","N/A",IF(F55="N/A","N/A",F55-F56)) -> -0.01428154628 | G57: 0.01189968523 | H57: 0.005893648618 | I57: 0.01831368463 | J57: 0.02877588514 | K57: 0.001012643624 | L57: 0.00986121572
A60: =lipper_para&GRIP -> Source: Lipper, bid to bid, as at 30.06.25, Royal London, as at 30.06.25. All performance figures, including the figures shown for the growth in the benchmarks, have been calculated net of the Fund Management Charge. The Compound Annual Growth Rate (C.A.G.R.) is a measure of the investment returns, on a given fund, over the specified period. It allows for the impact of compounding of investment returns, which is particularly important where returns vary from one year to the next. Past performance is not a guide to the future. Prices can fall as well as rise meaning you may not get back the value of your original investment. Investment returns may fluctuate and are not guaranteed. Please note that the GRIPs and their benchmarks are rebalanced on a monthly basis. This is the process of making sure the asset mix of the investments is maintained following movements due to fund price changes.
A61: =TER_para -> Total Expense Ratio (TER), covering calendar year 2023. The TER is a measure of the overall cost of a fund to the investor. It includes any audit, custodian, registration or compliance fees paid out of the fund’s assets plus the Fund Management Charge.
A62: =FTSE_caveat -> Note: The benchmarks used in this document include data from FTSE International Limited (“FTSE”) © FTSE 2025. “FTSE®” is a trade mark of the London Stock Exchange Group companies and is used by FTSE International Limited under licence. All rights in the FTSE indices and/or FTSE ratings vest in FTSE and/or its licensors. Neither FTSE nor its licensors accept any liability for any errors or omissions in the FTSE indices and/or FTSE ratings or underlying data. No further distribution of FTSE Data is permitted without FTSE’s express written consent.
A65: We're happy to provide your documents in a different format, such as Braille, large print or audio, just ask us when you get in touch. All of our printed products are produced on stock which is from FSC® certified forests.
A66: =Paras!B47 -> The Royal London Mutual Insurance Society Limited is authorised by the Prudential Regulation Authority and regulated by the Financial Conduct Authority and the Prudential Regulation Authority. The firm is on the Financial Services Register, registration number 117672. It provides life assurance and pensions. Registered in England and Wales number 99064. Registered office: 80 Fenchurch Street, London, EC3M 4BY. Royal London Marketing Limited is authorised and regulated by the Financial Conduct Authority and introduces Royal London’s customers to other insurance companies. The firm is on the Financial Services Register, registration number 302391. Registered in England and Wales number 4414137. Registered office: 80 Fenchurch Street, London, EC3M 4BY.
A67: =EDATE('Overcode Input'!$G$7,1) -> 2025-07-30 | K67: PDF P PD 0168
A69: Outputs - Without Equity Overcode
A74: ="PERFORMANCE STATISTICS TO END-"&UPPER(TEXT(input_MonthEnd,"Mmmm"))&" "&YEAR(input_MonthEnd) -> PERFORMANCE STATISTICS TO END-JUNE 2025
A75: GOVERNED RETIREMENT INCOME PORTFOLIOS
A78: Default equity fund
A80: Fund name | E80: =IF(Input_AMCRebate=0.01,"Additional Fund",IF(Input_AMCRebate=0,"Fund","Product + Fund")) -> Fund | F80: Total Expense Ratio | G80: % of equity allocation
E81: Management
E82: Charge
A83: RLP Global Managed | E83: =1%-Input_AMCRebate -> 0.01 | F83: =1%-Input_AMCRebate -> 0.01 | G83: 1
A85: =Paras!B21 -> The figures in this document have been calculated net of the Fund Management Charge.
A86: =Paras!C9 -> The equity portion of the GRIPs is, by default, invested in the RLP Global Managed Pension fund. The performance of the GRIPs has been calculated assuming this default equity selection. The composite benchmark performance uses the indices which correspond to the underlying funds.
A87: =Paras!B25&Paras!B27 -> The performance of each portfolio is shown against its benchmark: a gauge against which the performance of the fund can be measured. Where a fund invests in a number of different geographical areas or asset types, a composite benchmark may be used. This is when a mixture of indices have been used as a performance gauge. The mix between these indices will usually reflect the expected asset allocation of the portfolio. The composite benchmark performance uses the indices which correspond to the underlying funds.
A88: =Paras!B29 -> Past performance is not a guide to the future. Prices can fall as well as rise meaning you may not get back the value of your original investment. Investment returns may fluctuate and are not guaranteed.
A90: Portfolio Name | D90: =D39 -> Average Fund Management Charge | E90: Average Total Expense Ratio | F90: Percentage Change | K90: Compound Annual Growth Rate (%)
F91: =F40 -> 30.06.24 | G91: 30.06.23 | H91: 30.06.22 | I91: 30.06.21 | J91: 30.06.20
F92: 30.06.25 | G92: 30.06.24 | H92: 30.06.23 | I92: 30.06.22 | J92: 30.06.21 | K92: 3 Years | L92: 5 Years
F93: % Chg | G93: % Chg | H93: % Chg | I93: % Chg | J93: % Chg
A94: GRIP 1 | D94: =$E$83 -> 0.01 | E94: =$F$83 -> 0.01 | F94: ='Consolidated Performance Calc'!N173 -> 0.03521320886 | G94: ='Consolidated Performance Calc'!N174 -> 0.07798533309 | H94: ='Consolidated Performance Calc'!N175 -> -0.04433402431 | I94: ='Consolidated Performance Calc'!N176 -> -0.04672988303 | J94: ='Consolidated Performance Calc'!N177 -> 0.04329931302 | K94: ='Consolidated Performance Calc'!R167 -> 0.0216632225 | L94: ='Consolidated Performance Calc'!R166 -> 0.0118402127
A95: Composite benchmark | F95: ='Consolidated Performance Calc'!P173 -> 0.03751872426 | G95: ='Consolidated Performance Calc'!P174 -> 0.06515823826 | H95: ='Consolidated Performance Calc'!P175 -> -0.05622053465 | I95: ='Consolidated Performance Calc'!P176 -> -0.06168010543 | J95: ='Consolidated Performance Calc'!P177 -> 0.02464181595 | K95: ='Consolidated Performance Calc'!T167 -> 0.01411678929 | L95: ='Consolidated Performance Calc'!T166 -> 0.0005541271801
A96: Difference | F96: =IF(F95="N/A","N/A",F94-F95) -> -0.002305515394 | G96: =IF(G95="N/A","N/A",G94-G95) -> 0.01282709482 | H96: 0.01188651034 | I96: 0.01495022241 | J96: 0.01865749707 | K96: 0.007546433208 | L96: 0.01128608552
A97: GRIP 2 | D97: =$E$83 -> 0.01 | E97: =$F$83 -> 0.01 | F97: ='Consolidated Performance Calc'!N188 -> 0.0362259064 | G97: ='Consolidated Performance Calc'!N189 -> 0.08842153302 | H97: ='Consolidated Performance Calc'!N190 -> -0.0285993887 | I97: ='Consolidated Performance Calc'!N191 -> -0.03116535115 | J97: ='Consolidated Performance Calc'!N192 -> 0.0728869909 | K97: ='Consolidated Performance Calc'!R182 -> 0.0308716323 | L97: ='Consolidated Performance Calc'!R181 -> 0.02632411565
A98: Composite benchmark | F98: ='Consolidated Performance Calc'!P188 -> 0.0421361739 | G98: ='Consolidated Performance Calc'!P189 -> 0.07554897889 | H98: ='Consolidated Performance Calc'!P190 -> -0.0385859554 | I98: ='Consolidated Performance Calc'!P191 -> -0.04637768282 | J98: ='Consolidated Performance Calc'!P192 -> 0.05182437135 | K98: ='Consolidated Performance Calc'!T182 -> 0.02520764172 | L98: ='Consolidated Performance Calc'!T181 -> 0.0156714663
A99: Difference | F99: =IF(F98="N/A","N/A",F97-F98) -> -0.005910267494 | G99: =IF(G98="N/A","N/A",G97-G98) -> 0.01287255413 | H99: 0.009986566702 | I99: 0.01521233167 | J99: 0.02106261955 | K99: 0.005663990575 | L99: 0.01065264936
A100: GRIP 3 | D100: =$E$83 -> 0.01 | E100: =$F$83 -> 0.01 | F100: ='Consolidated Performance Calc'!N203 -> 0.03681913241 | G100: ='Consolidated Performance Calc'!N204 -> 0.096090334 | H100: ='Consolidated Performance Calc'!N205 -> -0.01553376936 | I100: ='Consolidated Performance Calc'!N206 -> -0.02466480371 | J100: ='Consolidated Performance Calc'!N207 -> 0.1041048933 | K100: ='Consolidated Performance Calc'!R197 -> 0.03809053502 | L100: ='Consolidated Performance Calc'!R196 -> 0.03794422905
A101: Composite benchmark | F101: ='Consolidated Performance Calc'!P203 -> 0.04478787055 | G101: ='Consolidated Performance Calc'!P204 -> 0.08356768987 | H101: ='Consolidated Performance Calc'!P205 -> -0.02424725346 | I101: ='Consolidated Performance Calc'!P206 -> -0.03986306283 | J101: ='Consolidated Performance Calc'!P207 -> 0.08062354711 | K101: ='Consolidated Performance Calc'!T197 -> 0.0337007651 | L101: ='Consolidated Performance Calc'!T196 -> 0.02763721507
A102: Difference | F102: =IF(F101="N/A","N/A",F100-F101) -> -0.007968738142 | G102: =IF(G101="N/A","N/A",G100-G101) -> 0.01252264413 | H102: 0.008713484107 | I102: 0.01519825912 | J102: 0.02348134624 | K102: 0.004389769927 | L102: 0.01030701399
A103: GRIP 4 | D103: =$E$83 -> 0.01 | E103: =$F$83 -> 0.01 | F103: ='Consolidated Performance Calc'!N218 -> 0.04076223285 | G103: ='Consolidated Performance Calc'!N219 -> 0.1087905178 | H103: ='Consolidated Performance Calc'!N220 -> 0.00363838997 | I103: ='Consolidated Performance Calc'!N221 -> -0.007987303024 | J103: ='Consolidated Performance Calc'!N222 -> 0.1366257741 | K103: ='Consolidated Performance Calc'!R212 -> 0.05012266865 | L103: ='Consolidated Performance Calc'!R211 -> 0.05479948433
A104: Composite benchmark | F104: ='Consolidated Performance Calc'!P218 -> 0.05197750811 | G104: ='Consolidated Performance Calc'!P219 -> 0.09613202085 | H104: ='Consolidated Performance Calc'!P220 -> -0.002921196749 | I104: ='Consolidated Performance Calc'!P221 -> -0.02574290408 | J104: ='Consolidated Performance Calc'!P222 -> 0.1090619682 | K104: ='Consolidated Performance Calc'!T212 -> 0.04756546034 | L104: ='Consolidated Performance Calc'!T211 -> 0.04432414226
A105: Difference | F105: =IF(F104="N/A","N/A",F103-F104) -> -0.01121527527 | G105: =IF(G104="N/A","N/A",G103-G104) -> 0.01265849699 | H105: 0.006559586718 | I105: 0.01775560105 | J105: 0.0275638059 | K105: 0.00255720831 | L105: 0.01047534207
A106: GRIP 5 | D106: =$E$83 -> 0.01 | E106: =$F$83 -> 0.01 | F106: ='Consolidated Performance Calc'!N233 -> 0.04256106444 | G106: ='Consolidated Performance Calc'!N234 -> 0.1205453329 | H106: ='Consolidated Performance Calc'!N235 -> 0.01915903845 | I106: ='Consolidated Performance Calc'!N236 -> -0.005899518386 | J106: ='Consolidated Performance Calc'!N237 -> 0.1646621273 | K106: ='Consolidated Performance Calc'!R227 -> 0.05982603957 | L106: ='Consolidated Performance Calc'!R226 -> 0.06626549999
A107: Composite benchmark | F107: ='Consolidated Performance Calc'!P233 -> 0.05684261072 | G107: ='Consolidated Performance Calc'!P234 -> 0.1086456477 | H107: ='Consolidated Performance Calc'!P235 -> 0.01326538983 | I107: ='Consolidated Performance Calc'!P236 -> -0.02421320302 | J107: ='Consolidated Performance Calc'!P237 -> 0.1358862422 | K107: ='Consolidated Performance Calc'!T227 -> 0.05881339594 | L107: ='Consolidated Performance Calc'!T226 -> 0.05640428427
A108: Difference | F108: =IF(F107="N/A","N/A",F106-F107) -> -0.01428154628 | G108: =IF(G107="N/A","N/A",G106-G107) -> 0.01189968523 | H108: 0.005893648618 | I108: 0.01831368463 | J108: 0.02877588514 | K108: 0.001012643624 | L108: 0.00986121572
A110: pgr% is the percentage change in prices
A112: =lipper_para&GRIP -> Source: Lipper, bid to bid, as at 30.06.25, Royal London, as at 30.06.25. All performance figures, including the figures shown for the growth in the benchmarks, have been calculated net of the Fund Management Charge. The Compound Annual Growth Rate (C.A.G.R.) is a measure of the investment returns, on a given fund, over the specified period. It allows for the impact of compounding of investment returns, which is particularly important where returns vary from one year to the next. Past performance is not a guide to the future. Prices can fall as well as rise meaning you may not get back the value of your original investment. Investment returns may fluctuate and are not guaranteed. Please note that the GRIPs and their benchmarks are rebalanced on a monthly basis. This is the process of making sure the asset mix of the investments is maintained following movements due to fund price changes.
A113: =TER_para -> Total Expense Ratio (TER), covering calendar year 2023. The TER is a measure of the overall cost of a fund to the investor. It includes any audit, custodian, registration or compliance fees paid out of the fund’s assets plus the Fund Management Charge.
A114: =FTSE_caveat -> Note: The benchmarks used in this document include data from FTSE International Limited (“FTSE”) © FTSE 2025. “FTSE®” is a trade mark of the London Stock Exchange Group companies and is used by FTSE International Limited under licence. All rights in the FTSE indices and/or FTSE ratings vest in FTSE and/or its licensors. Neither FTSE nor its licensors accept any liability for any errors or omissions in the FTSE indices and/or FTSE ratings or underlying data. No further distribution of FTSE Data is permitted without FTSE’s express written consent.
A117: We're happy to provide your documents in a different format, such as Braille, large print or audio, just ask us when you get in touch. All of our printed products are produced on stock which is from FSC® certified forests.
A118: =Paras!B47 -> The Royal London Mutual Insurance Society Limited is authorised by the Prudential Regulation Authority and regulated by the Financial Conduct Authority and the Prudential Regulation Authority. The firm is on the Financial Services Register, registration number 117672. It provides life assurance and pensions. Registered in England and Wales number 99064. Registered office: 80 Fenchurch Street, London, EC3M 4BY. Royal London Marketing Limited is authorised and regulated by the Financial Conduct Authority and introduces Royal London’s customers to other insurance companies. The firm is on the Financial Services Register, registration number 302391. Registered in England and Wales number 4414137. Registered office: 80 Fenchurch Street, London, EC3M 4BY.
A119: =EDATE('Overcode Input'!$G$7,1) -> 2025-07-30 | K119: PDF P PD 0169

Sheet GP Annuity Performance (hidden)
A1: Outputs - With Equity Overcode
A5: ="PERFORMANCE STATISTICS TO END-"&UPPER(TEXT(input_MonthEnd,"Mmmm"))&" "&YEAR(input_MonthEnd) -> PERFORMANCE STATISTICS TO END-JUNE 2025
A6: GOVERNED PORTFOLIOS (ANNUITY)
A8: Replacement equity funds
A9: Fund name | E9: =IF(Input_AMCRebate=0.01,"Additional Fund",IF(Input_AMCRebate=0,"Fund","Product + Fund")) -> Fund | F9: Total Expense Ratio | G9: % of equity allocation
E10: Management
E11: Charge
A12: =IF('Overcode Input'!B11="","",'Overcode Input'!B11) -> RLP Global Managed | E12: =IF('Overcode Input'!F11="","",'Overcode Input'!F11) -> 0.01 | F12: =IF('Overcode Input'!G11="","",'Overcode Input'!G11) -> 0.01 | G12: =IF('Overcode Input'!E11="","",'Overcode Input'!E11) -> 1 | H12: =IF('TA Equity Calc'!E30="Yes","","No benchmark comparison shown due to pricing delay of one or more selected funds.") -> 
A13: =IF('Overcode Input'!B12="","",'Overcode Input'!B12) ->  | E13: =IF('Overcode Input'!F12="","",'Overcode Input'!F12) ->  | F13: =IF('Overcode Input'!G12="","",'Overcode Input'!G12) ->  | G13: =IF('Overcode Input'!E12="","",'Overcode Input'!E12) -> 
A14: =IF('Overcode Input'!B13="","",'Overcode Input'!B13) ->  | E14: =IF('Overcode Input'!F13="","",'Overcode Input'!F13) ->  | F14: =IF('Overcode Input'!G13="","",'Overcode Input'!G13) ->  | G14: =IF('Overcode Input'!E13="","",'Overcode Input'!E13) -> 
A15: =IF('Overcode Input'!B14="","",'Overcode Input'!B14) ->  | E15: =IF('Overcode Input'!F14="","",'Overcode Input'!F14) ->  | F15: =IF('Overcode Input'!G14="","",'Overcode Input'!G14) ->  | G15: =IF('Overcode Input'!E14="","",'Overcode Input'!E14) -> 
A16: =IF('Overcode Input'!B15="","",'Overcode Input'!B15) ->  | E16: =IF('Overcode Input'!F15="","",'Overcode Input'!F15) ->  | F16: =IF('Overcode Input'!G15="","",'Overcode Input'!G15) ->  | G16: =IF('Overcode Input'!E15="","",'Overcode Input'!E15) -> 
A17: =IF('Overcode Input'!B16="","",'Overcode Input'!B16) ->  | E17: =IF('Overcode Input'!F16="","",'Overcode Input'!F16) ->  | F17: =IF('Overcode Input'!G16="","",'Overcode Input'!G16) ->  | G17: =IF('Overcode Input'!E16="","",'Overcode Input'!E16) -> 
A18: =IF('Overcode Input'!B17="","",'Overcode Input'!B17) ->  | E18: =IF('Overcode Input'!F17="","",'Overcode Input'!F17) ->  | F18: =IF('Overcode Input'!G17="","",'Overcode Input'!G17) ->  | G18: =IF('Overcode Input'!E17="","",'Overcode Input'!E17) -> 
A19: =IF('Overcode Input'!B18="","",'Overcode Input'!B18) ->  | E19: =IF('Overcode Input'!F18="","",'Overcode Input'!F18) ->  | F19: =IF('Overcode Input'!G18="","",'Overcode Input'!G18) ->  | G19: =IF('Overcode Input'!E18="","",'Overcode Input'!E18) -> 
A20: =IF('Overcode Input'!B19="","",'Overcode Input'!B19) ->  | E20: =IF('Overcode Input'!F19="","",'Overcode Input'!F19) ->  | F20: =IF('Overcode Input'!G19="","",'Overcode Input'!G19) ->  | G20: =IF('Overcode Input'!E19="","",'Overcode Input'!E19) -> 
A21: =IF('Overcode Input'!B20="","",'Overcode Input'!B20) ->  | E21: =IF('Overcode Input'!F20="","",'Overcode Input'!F20) ->  | F21: =IF('Overcode Input'!G20="","",'Overcode Input'!G20) ->  | G21: =IF('Overcode Input'!E20="","",'Overcode Input'!E20) -> 
A22: =IF('Overcode Input'!B21="","",'Overcode Input'!B21) ->  | E22: =IF('Overcode Input'!F21="","",'Overcode Input'!F21) ->  | F22: =IF('Overcode Input'!G21="","",'Overcode Input'!G21) ->  | G22: =IF('Overcode Input'!E21="","",'Overcode Input'!E21) -> 
A23: =IF('Overcode Input'!B22="","",'Overcode Input'!B22) ->  | E23: =IF('Overcode Input'!F22="","",'Overcode Input'!F22) ->  | F23: =IF('Overcode Input'!G22="","",'Overcode Input'!G22) ->  | G23: =IF('Overcode Input'!E22="","",'Overcode Input'!E22) -> 
A24: =IF('Overcode Input'!B23="","",'Overcode Input'!B23) ->  | E24: =IF('Overcode Input'!F23="","",'Overcode Input'!F23) ->  | F24: =IF('Overcode Input'!G23="","",'Overcode Input'!G23) ->  | G24: =IF('Overcode Input'!E23="","",'Overcode Input'!E23) -> 
A25: =IF('Overcode Input'!B24="","",'Overcode Input'!B24) ->  | E25: =IF('Overcode Input'!F24="","",'Overcode Input'!F24) ->  | F25: =IF('Overcode Input'!G24="","",'Overcode Input'!G24) ->  | G25: =IF('Overcode Input'!E24="","",'Overcode Input'!E24) -> 
A26: =IF('Overcode Input'!B25="","",'Overcode Input'!B25) ->  | E26: =IF('Overcode Input'!F25="","",'Overcode Input'!F25) ->  | F26: =IF('Overcode Input'!G25="","",'Overcode Input'!G25) ->  | G26: =IF('Overcode Input'!E25="","",'Overcode Input'!E25) -> 
A27: =IF('Overcode Input'!B26="","",'Overcode Input'!B26) ->  | E27: =IF('Overcode Input'!F26="","",'Overcode Input'!F26) ->  | F27: =IF('Overcode Input'!G26="","",'Overcode Input'!G26) ->  | G27: =IF('Overcode Input'!E26="","",'Overcode Input'!E26) -> 
A28: =IF('Overcode Input'!B27="","",'Overcode Input'!B27) ->  | E28: =IF('Overcode Input'!F27="","",'Overcode Input'!F27) ->  | F28: =IF('Overcode Input'!G27="","",'Overcode Input'!G27) ->  | G28: =IF('Overcode Input'!E27="","",'Overcode Input'!E27) -> 
A29: =IF('Overcode Input'!B28="","",'Overcode Input'!B28) ->  | E29: =IF('Overcode Input'!F28="","",'Overcode Input'!F28) ->  | F29: =IF('Overcode Input'!G28="","",'Overcode Input'!G28) ->  | G29: =IF('Overcode Input'!E28="","",'Overcode Input'!E28) -> 
A30: =IF('Overcode Input'!B29="","",'Overcode Input'!B29) ->  | E30: =IF('Overcode Input'!F29="","",'Overcode Input'!F29) ->  | F30: =IF('Overcode Input'!G29="","",'Overcode Input'!G29) ->  | G30: =IF('Overcode Input'!E29="","",'Overcode Input'!E29) -> 
A31: =IF('Overcode Input'!B30="","",'Overcode Input'!B30) ->  | E31: =IF('Overcode Input'!F30="","",'Overcode Input'!F30) ->  | F31: =IF('Overcode Input'!G30="","",'Overcode Input'!G30) ->  | G31: =IF('Overcode Input'!E30="","",'Overcode Input'!E30) -> 
A33: Governed Portfolio (Annuity) performance - with replacement equity funds
A34: =Paras!B21 -> The figures in this document have been calculated net of the Fund Management Charge.
A35: =Paras!C17&Paras!C18 -> This table gives simulated past performance of the Governed Portfolios (Drawdown) assuming that the equity portion was invested in the replacement funds shown. It should be noted that some funds come with an additional management charge to the standard 1% applicable to RLAM funds. The overall charge depends on the current asset allocation. The management charges shown in the table correspond to the asset allocation at 30.06.25 only.
A36: =Paras!B25&Paras!B26 -> The performance of each portfolio is shown against its benchmark: a gauge against which the performance of the fund can be measured. Where a fund invests in a number of different geographical areas or asset types, a composite benchmark may be used. This is when a mixture of indices have been used as a performance gauge. The mix between these indices will usually reflect the expected asset allocation of the portfolio. The composite benchmark performance uses the indices which correspond to the default equity fund, not the replacement fund or funds.
A37: =Paras!B29 -> Past performance is not a guide to the future. Prices can fall as well as rise meaning you may not get back the value of your original investment. Investment returns may fluctuate and are not guaranteed.
A41: Portfolio Name | D41: ="Average "&E9&" Management Charge" -> Average Fund Management Charge | E41: Average Total Expense Ratio | F41: Percentage Change | K41: Compound Annual Growth Rate (%) | N41: Percentage Change
F42: =TEXT('Consolidated Performance Calc'!C22,"dd.mm.yy") -> 30.06.24 | G42: =TEXT('Consolidated Performance Calc'!C23,"dd.mm.yy") -> 30.06.23 | H42: =TEXT('Consolidated Performance Calc'!C24,"dd.mm.yy") -> 30.06.22 | I42: =TEXT('Consolidated Performance Calc'!C25,"dd.mm.yy") -> 30.06.21 | J42: =TEXT('Consolidated Performance Calc'!C26,"dd.mm.yy") -> 30.06.20 | N42: 1 Month | O42: 3 Months | P42: 6 Months | Q42: 9 Months
